Workbook

Sheet Outputs Monthly
N1: Annual Financial Receipts
B2: County Fiscal Year 2015-16 | N2: Total Number of Financial Receipts for the Year: | O2: Projected | P2: Actual
B3: Outputs Monthly Report Form for CCOC | O3: =LOOKUP(D8,'DownloadBudgetData (2) Operatio'!B2:B68,'DownloadBudgetData (2) Operatio'!AG2:AG68) -> 453037
N4: Financial Receipts are totaled for the full fiscal year and entered here annually. This annual total is to be reported on the September submission.
C6: Report for the Month of: | D6: Mar
C7: Version #: | D7: 2
C8: County: | D8: Brevard | F8: Contact: | G8: Michelle Levar | J8: Telephone: | K8: 321-633-7782 | M8: E-mail: | N8: michelle.levar@brevardclerk.us
F11: Criminal | M11: Civil
D12: Circuit | E12: County | F12: Juvenile Delinquency | G12: Traffic | H12: Total | J12: Circuit | K12: County | L12: Traffic | M12: Probate | N12: Family | O12: Juvenile Dependency | P12: Total | R12: Grand Total
B13: Projections
C14: Cases/Defendants | D14: =LOOKUP(D8,'DownloadBudgetData (2) Operatio'!B2:B68,'DownloadBudgetData (2) Operatio'!C2:C68) -> 9200 | E14: =LOOKUP(D8,'DownloadBudgetData (2) Operatio'!B2:B68,'DownloadBudgetData (2) Operatio'!D2:D68) -> 10000 | F14: =LOOKUP(D8,'DownloadBudgetData (2) Operatio'!B2:B68,'DownloadBudgetData (2) Operatio'!E2:E68) -> 1800 | G14: =LOOKUP(D8,'DownloadBudgetData (2) Operatio'!B2:B68,'DownloadBudgetData (2) Operatio'!F2:F68) -> 7500 | H14: =SUM(D14:G14) -> 28500 | J14: =LOOKUP(D8,'DownloadBudgetData (2) Operatio'!B2:B68,'DownloadBudgetData (2) Operatio'!G2:G68) -> 5600 | K14: =LOOKUP(D8,'DownloadBudgetData (2) Operatio'!B2:B68,'DownloadBudgetData (2) Operatio'!H2:H68) -> 7000 | L14: =LOOKUP(D8,'DownloadBudgetData (2) Operatio'!B2:B68,'DownloadBudgetData (2) Operatio'!L2:L68) -> 55000 | M14: =LOOKUP(D8,'DownloadBudgetData (2) Operatio'!B2:B68,'DownloadBudgetData (2) Operatio'!I2:I68) -> 5000 | N14: =LOOKUP(D8,'DownloadBudgetData (2) Operatio'!B2:B68,'DownloadBudgetData (2) Operatio'!J2:J68) -> 7200 | O14: =LOOKUP(D8,'DownloadBudgetData (2) Operatio'!B2:B68,'DownloadBudgetData (2) Operatio'!K2:K68) -> 350 | P14: =SUM(J14:O14) -> 80150 | R14: =H14+P14 -> 108650
C15: Reopenings | D15: =LOOKUP(D8,'DownloadBudgetData (2) Operatio'!B2:B68,'DownloadBudgetData (2) Operatio'!M2:M68) -> 8000 | E15: =LOOKUP(D8,'DownloadBudgetData (2) Operatio'!B2:B68,'DownloadBudgetData (2) Operatio'!N2:N68) -> 2100 | F15: =LOOKUP(D8,'DownloadBudgetData (2) Operatio'!B2:B68,'DownloadBudgetData (2) Operatio'!O2:O68) -> 2600 | G15: =LOOKUP(D8,'DownloadBudgetData (2) Operatio'!B2:B68,'DownloadBudgetData (2) Operatio'!P2:P68) -> 2100 | H15: =SUM(D15:G15) -> 14800 | J15: =LOOKUP(D8,'DownloadBudgetData (2) Operatio'!B2:B68,'DownloadBudgetData (2) Operatio'!Q2:Q68) -> 6700 | K15: =LOOKUP(D8,'DownloadBudgetData (2) Operatio'!B2:B68,'DownloadBudgetData (2) Operatio'!R2:R68) -> 3600 | L15: =LOOKUP(D8,'DownloadBudgetData (2) Operatio'!B2:B68,'DownloadBudgetData (2) Operatio'!V2:V68) -> 0 | M15: =LOOKUP(D8,'DownloadBudgetData (2) Operatio'!B2:B68,'DownloadBudgetData (2) Operatio'!S2:S68) -> 2000 | N15: =LOOKUP(D8,'DownloadBudgetData (2) Operatio'!B2:B68,'DownloadBudgetData (2) Operatio'!T2:T68) -> 8700 | O15: =LOOKUP(D8,'DownloadBudgetData (2) Operatio'!B2:B68,'DownloadBudgetData (2) Operatio'!U2:U68) -> 500 | P15: =SUM(J15:O15) -> 21500 | R15: =H15+P15 -> 36300
C16: NOA's | D16: =LOOKUP(D8,'DownloadBudgetData (2) Operatio'!B2:B68,'DownloadBudgetData (2) Operatio'!W2:W68) -> 500 | E16: =LOOKUP(D8,'DownloadBudgetData (2) Operatio'!B2:B68,'DownloadBudgetData (2) Operatio'!X2:X68) -> 25 | F16: =LOOKUP(D8,'DownloadBudgetData (2) Operatio'!B2:B68,'DownloadBudgetData (2) Operatio'!Y2:Y68) -> 3 | G16: =LOOKUP(D8,'DownloadBudgetData (2) Operatio'!B2:B68,'DownloadBudgetData (2) Operatio'!Z2:Z68) -> 30 | H16: =SUM(D16:G16) -> 558 | J16: =LOOKUP(D8,'DownloadBudgetData (2) Operatio'!B2:B68,'DownloadBudgetData (2) Operatio'!AA2:AA68) -> 100 | K16: =LOOKUP(D8,'DownloadBudgetData (2) Operatio'!B2:B68,'DownloadBudgetData (2) Operatio'!AB2:AB68) -> 20 | L16: =LOOKUP(D8,'DownloadBudgetData (2) Operatio'!B2:B68,'DownloadBudgetData (2) Operatio'!AF2:AF68) -> 15 | M16: =LOOKUP(D8,'DownloadBudgetData (2) Operatio'!B2:B68,'DownloadBudgetData (2) Operatio'!AC2:AC68) -> 10 | N16: =LOOKUP(D8,'DownloadBudgetData (2) Operatio'!B2:B68,'DownloadBudgetData (2) Operatio'!AD2:AD68) -> 35 | O16: =LOOKUP(D8,'DownloadBudgetData (2) Operatio'!B2:B68,'DownloadBudgetData (2) Operatio'!AE2:AE68) -> 25 | P16: 205 | R16: 763
B17: October 2015
C18: Cases/Defendants | D18: 682 | E18: 829 | F18: 136 | G18: 517 | H18: =SUM(D18:G18) -> 2164 | J18: 362 | K18: 696 | L18: 3410 | M18: 404 | N18: 565 | O18: 40 | P18: 5477 | R18: 7641
C19: Reopenings | D19: 679 | E19: 142 | F19: 280 | G19: 214 | H19: =SUM(D19:G19) -> 1315 | J19: 425 | K19: 378 | L19: 0 | M19: 224 | N19: 638 | O19: 56 | P19: 1721 | R19: 3036
C20: NOA's | D20: 35 | E20: 2 | F20: 0 | G20: 3 | H20: =SUM(D20:G20) -> 40 | J20: 9 | K20: 1 | L20: 0 | M20: 0 | N20: 3 | O20: 3 | P20: 16 | R20: 56 | ZZ20: PABS4.0
B21: November 2015
C22: Cases/Defendants | D22: 545 | E22: 761 | F22: 124 | G22: 437 | H22: =SUM(D22:G22) -> 1867 | J22: 315 | K22: 610 | L22: 3291 | M22: 435 | N22: 530 | O22: 14 | P22: 5195 | R22: 7062
C23: Reopenings | D23: 535 | E23: 156 | F23: 186 | G23: 167 | H23: =SUM(D23:G23) -> 1044 | J23: 377 | K23: 339 | L23: 0 | M23: 174 | N23: 560 | O23: 40 | P23: 1490 | R23: 2534
C24: NOA's | D24: 18 | E24: 4 | F24: 0 | G24: 4 | H24: =SUM(D24:G24) -> 26 | J24: 11 | K24: 2 | L24: 0 | M24: 0 | N24: 6 | O24: 0 | P24: 19 | R24: 45
B25: December 2015
C26: Cases/Defendants | D26: 626 | E26: 762 | F26: 143 | G26: 529 | H26: =SUM(D26:G26) -> 2060 | J26: 356 | K26: 671 | L26: 3138 | M26: 360 | N26: 517 | O26: 22 | P26: 5064 | R26: 7124
C27: Reopenings | D27: 650 | E27: 140 | F27: 175 | G27: 187 | H27: =SUM(D27:G27) -> 1152 | J27: 297 | K27: 315 | L27: 0 | M27: 238 | N27: 543 | O27: 85 | P27: 1478 | R27: 2630
C28: NOA's | D28: 45 | E28: 0 | F28: 0 | G28: 6 | H28: =SUM(D28:G28) -> 51 | J28: 4 | K28: 2 | L28: 1 | M28: 0 | N28: 2 | O28: 0 | P28: 9 | R28: 60
B29: January 2016
C30: Cases/Defendants | D30: 655 | E30: 759 | F30: 145 | G30: 506 | H30: =SUM(D30:G30) -> 2065 | J30: 328 | K30: 599 | L30: 3163 | M30: 343 | N30: 529 | O30: 30 | P30: 4992 | R30: 7057
C31: Reopenings | D31: 719 | E31: 136 | F31: 188 | G31: 174 | H31: =SUM(D31:G31) -> 1217 | J31: 371 | K31: 311 | L31: 0 | M31: 236 | N31: 628 | O31: 56 | P31: 1602 | R31: 2819
C32: NOA's | D32: 30 | E32: 2 | F32: 0 | G32: 2 | H32: =SUM(D32:G32) -> 34 | J32: 11 | K32: 0 | L32: 0 | M32: 0 | N32: 2 | O32: 2 | P32: 15 | R32: 49
B33: February 2016
C34: Cases/Defendants | D34: 605 | E34: 698 | F34: 134 | G34: 513 | H34: =SUM(D34:G34) -> 1950 | J34: 346 | K34: 640 | L34: 3550 | M34: 407 | N34: 525 | O34: 51 | P34: 5519 | R34: 7469
C35: Reopenings | D35: 737 | E35: 197 | F35: 225 | G35: 160 | H35: =SUM(D35:G35) -> 1319 | J35: 350 | K35: 330 | L35: 0 | M35: 240 | N35: 610 | O35: 59 | P35: 1589 | R35: 2908
C36: NOA's | D36: 33 | E36: 0 | F36: 0 | G36: 0 | H36: =SUM(D36:G36) -> 33 | J36: 11 | K36: 1 | L36: 0 | M36: 0 | N36: 3 | O36: 3 | P36: 18 | R36: 51
B37: March 2016
C38: Cases/Defendants | D38: 676 | E38: 837 | F38: 165 | G38: 616 | H38: =SUM(D38:G38) -> 2294 | J38: 397 | K38: 696 | L38: 4256 | M38: 481 | N38: 655 | O38: 17 | P38: 6502 | R38: 8796
C39: Reopenings | D39: 847 | E39: 261 | F39: 276 | G39: 221 | H39: =SUM(D39:G39) -> 1605 | J39: 358 | K39: 329 | L39: 0 | M39: 272 | N39: 650 | O39: 67 | P39: 1676 | R39: 3281
C40: NOA's | D40: 26 | E40: 2 | F40: 1 | G40: 5 | H40: =SUM(D40:G40) -> 34 | J40: 12 | K40: 0 | L40: 2 | M40: 0 | N40: 5 | O40: 2 | P40: 21 | R40: 55
B41: April 2016
C42: Cases/Defendants | H42: =SUM(D42:G42) -> 0 | P42: 0 | R42: 0
C43: Reopenings | H43: =SUM(D43:G43) -> 0 | L43: 0 | P43: 0 | R43: 0
C44: NOA's | H44: =SUM(D44:G44) -> 0 | P44: 0 | R44: 0
B45: May 2016
C46: Cases/Defendants | H46: =SUM(D46:G46) -> 0 | P46: 0 | R46: 0
C47: Reopenings | H47: =SUM(D47:G47) -> 0 | L47: 0 | P47: 0 | R47: 0
C48: NOA's | H48: =SUM(D48:G48) -> 0 | P48: 0 | R48: 0
B49: June 2016
C50: Cases/Defendants | H50: =SUM(D50:G50) -> 0 | P50: 0 | R50: 0
C51: Reopenings | H51: =SUM(D51:G51) -> 0 | L51: 0 | P51: 0 | R51: 0
C52: NOA's | H52: =SUM(D52:G52) -> 0 | P52: 0 | R52: 0
B53: July 2016
C54: Cases/Defendants | H54: =SUM(D54:G54) -> 0 | P54: =SUM(J54:O54) -> 0 | R54: =H54+P54 -> 0
C55: Reopenings | H55: =SUM(D55:G55) -> 0 | L55: 0 | P55: =SUM(J55:O55) -> 0 | R55: =H55+P55 -> 0
C56: NOA's | H56: =SUM(D56:G56) -> 0 | P56: =SUM(J56:O56) -> 0 | R56: =H56+P56 -> 0
B57: August 2016
C58: Cases/Defendants | H58: =SUM(D58:G58) -> 0 | P58: =SUM(J58:O58) -> 0 | R58: =H58+P58 -> 0
C59: Reopenings | H59: =SUM(D59:G59) -> 0 | L59: 0 | P59: =SUM(J59:O59) -> 0 | R59: =H59+P59 -> 0
C60: NOA's | H60: =SUM(D60:G60) -> 0 | P60: =SUM(J60:O60) -> 0 | R60: =H60+P60 -> 0
B61: September 2016
C62: Cases/Defendants | H62: =SUM(D62:G62) -> 0 | P62: =SUM(J62:O62) -> 0 | R62: =H62+P62 -> 0
C63: Reopenings | H63: =SUM(D63:G63) -> 0 | L63: 0 | P63: =SUM(J63:O63) -> 0 | R63: =H63+P63 -> 0
C64: NOA's | H64: =SUM(D64:G64) -> 0 | P64: =SUM(J64:O64) -> 0 | R64: =H64+P64 -> 0
B65: Year-to-Date
C66: Cases/Defendants | D66: =SUM(D54+D58+D62+D18+D22+D26+D30+D34+D38+D42+D46+D50) -> 3789 | E66: 4646 | F66: 847 | G66: 3118 | H66: =SUM(D66:G66) -> 12400 | J66: =SUM(J54+J58+J62+J18+J22+J26+J30+J34+J38+J42+J46+J50) -> 2104 | K66: 3912 | L66: 20808 | M66: 2430 | N66: 3321 | O66: 174 | P66: 32749 | R66: 45149
C67: Reopenings | D67: 4167 | E67: 1032 | F67: 1330 | G67: 1123 | H67: =SUM(D67:G67) -> 7652 | J67: 2178 | K67: 2002 | L67: 0 | M67: 1384 | N67: 3629 | O67: 363 | P67: 9556 | R67: 17208
C68: NOA's | D68: 187 | E68: 10 | F68: 1 | G68: 20 | H68: =SUM(D68:G68) -> 218 | J68: 58 | K68: 6 | L68: 3 | M68: 0 | N68: 21 | O68: 10 | P68: 98 | R68: 316
B69: Year-to-Date % of Projections
C70: Cases/Defendants | D70: =D66/D14 -> 0.4118478261 | E70: 0.4646 | F70: 0.4705555556 | G70: 0.4157333333 | H70: 0.4350877193 | J70: =J66/J14 -> 0.3757142857 | K70: 0.5588571429 | L70: 0.3783272727 | M70: 0.486 | N70: 0.46125 | O70: 0.4971428571 | P70: 0.4085963818 | R70: =R66/R14 -> 0.415545329
C71: Reopenings | D71: 0.520875 | E71: 0.4914285714 | F71: 0.5115384615 | G71: 0.5347619048 | H71: 0.517027027 | J71: =J67/J15 -> 0.3250746269 | K71: =K67/K15 -> 0.5561111111 | L71: 0 | M71: =M67/M15 -> 0.692 | N71: 0.4171264368 | O71: 0.726 | P71: 0.4444651163 | R71: =R67/R15 -> 0.4740495868
C72: NOA's | D72: 0.374 | E72: 0.4 | F72: 0.3333333333 | G72: 0.6666666667 | H72: 0.3906810036 | J72: =J68/J16 -> 0.58 | K72: =K68/K16 -> 0.3 | L72: =L68/L16 -> 0.2 | M72: 0 | N72: 0.6 | O72: 0.4 | P72: 0.4780487805 | R72: =R68/R16 -> 0.4141546527
V77: Alachua | W77: Oct | X77: 1
V78: Baker | W78: Nov | X78: 2
V79: Bay | W79: Dec | X79: 3
V80: Bradford | W80: Jan | X80: 4
V81: Brevard | W81: Feb | X81: 5
V82: Broward | W82: Mar | X82: 6
V83: Calhoun | W83: Apr | X83: 7
V84: Charlotte | W84: May | X84: 8
V85: Citrus | W85: Jun | X85: 9
V86: Clay | W86: Jul | X86: 10
V87: Collier | W87: Aug
V88: Columbia | W88: Sep
V89: Dade
V90: Desoto
V91: Dixie
V92: Duval
V93: Escambia
V94: Flagler
V95: Franklin
V96: Gadsden
V97: Gilchrist
V98: Glades
V99: Gulf
V100: Hamilton
V101: Hardee
V102: Hendry
V103: Hernando
V104: Highlands
V105: Hillsborough
V106: Holmes
V107: Indian River
V108: Jackson
V109: Jefferson
V110: Lafayette
V111: Lake
V112: Lee
V113: Leon
V114: Levy
V115: Liberty
V116: Madison
V117: Manatee
V118: Marion
V119: Martin
V120: Monroe
V121: Nassau
V122: Okaloosa
V123: Okeechobee
V124: Orange
V125: Osceola
V126: Palm Beach
V127: Pasco
V128: Pinellas
V129: Polk
V130: Putnam
V131: Santa Rosa
V132: Sarasota
V133: Seminole
V134: St. Johns
V135: St. Lucie
V136: Sumter
V137: Suwannee
V138: Taylor
V139: Union
V140: Volusia
V141: Wakulla
V142: Walton
V143: Washington

Sheet Timeliness Quarterly
B1: County Fiscal Year 2015 - 2016
B2: Timeliness Quarterly Report Form for CCOC
C4: Report Month of (Quarter Ending): | D4: ='Outputs Monthly'!D6:E6 -> Mar | F4: Contact: | G4: 1936
C5: Version #: | D5: ='Outputs Monthly'!D7:E7 -> 2 | F5: Telephone: | G5: 321-633-7782
C6: County: | D6: ='Outputs Monthly'!D8:E8 -> Brevard | F6: E-mail: | G6: michelle.levar@brevardclerk.us
A8: Timeliness Measures #1: Annual Projected % of new cases OPENED within X business days after initial documents are clocked in.
D9: Performance Measure Standard | E9: # Of Business Days | F9: 10/1/15 - 12/31/15 | G9: 1/1/16 - 3/31/16 | H9: 4/1/16 - 6/30/16 | I9: 7/1/16 - 9/30/16 | K9: =F9 -> 10/1/15 - 12/31/15 | M9: =G9 -> 1/1/16 - 3/31/16 | O9: =H9 -> 4/1/16 - 6/30/16 | Q9: =I9 -> 7/1/16 - 9/30/16
A10: A | B10: Criminal | F10: 1st Quarter | G10: 2nd Quarter | H10: 3rd Quarter | I10: 4th Quarter | J10: Year-to-Date | K10: Reason Code | L10: Comments / Actions to Improve | M10: Reason Code | N10: Comments / Actions to Improve | O10: Reason Code | P10: Comments / Actions to Improve | Q10: Reason Code | R10: Comments / Actions to Improve | T10: 1
A11: Circuit (defendants) | C11: Total # of defendants | D11: 0.8 | E11: 2 | F11: ='Outputs Monthly'!D18+'Outputs Monthly'!D22+'Outputs Monthly'!D26 -> 1853 | G11: ='Outputs Monthly'!D30+'Outputs Monthly'!D34+'Outputs Monthly'!D38 -> 1936 | H11: ='Outputs Monthly'!D42+'Outputs Monthly'!D46+'Outputs Monthly'!D50 -> 0 | I11: ='Outputs Monthly'!D54+'Outputs Monthly'!D58+'Outputs Monthly'!D62 -> 0 | J11: =SUM(F11:I11) -> 3789
C12: # within 2 business days | F12: 1842 | G12: 1917 | J12: =SUM(F12:I12) -> 3759 | T12: Staffing - Internal
C13: % mtg level | F13: =F12/F11 -> 0.9940636805 | G13: =G12/G11 -> 0.9901859504 | H13: =H12/H11 ->  | I13: =I12/I11 ->  | J13: =J12/J11 -> 0.9920823436 | T13: Staffing - External
A14: County (defendants) | C14: Total # of defendants | D14: 0.8 | E14: 3 | F14: ='Outputs Monthly'!E18+'Outputs Monthly'!E22+'Outputs Monthly'!E26 -> 2352 | G14: ='Outputs Monthly'!E30+'Outputs Monthly'!E34+'Outputs Monthly'!E38 -> 2294 | H14: ='Outputs Monthly'!E42+'Outputs Monthly'!E46+'Outputs Monthly'!E50 -> 0 | I14: ='Outputs Monthly'!E54+'Outputs Monthly'!E58+'Outputs Monthly'!E62 -> 0 | J14: 4646 | T14: Unfunded Mandates - External
C15: # within 3 business days | F15: 2323 | G15: 2213 | J15: 4536 | T15: Systems/Conversions - Internal
C16: % mtg level | F16: =F15/F14 -> 0.987670068 | G16: =G15/G14 -> 0.9646904969 | H16: =H15/H14 ->  | I16: =I15/I14 ->  | J16: =J15/J14 -> 0.9763237193 | T16: Systems/Conversions - External
A17: Juvenile Delinquency (juveniles) | C17: Total # of juveniles | D17: 0.8 | E17: 2 | F17: ='Outputs Monthly'!F18+'Outputs Monthly'!F22+'Outputs Monthly'!F26 -> 403 | G17: ='Outputs Monthly'!F30+'Outputs Monthly'!F34+'Outputs Monthly'!F38 -> 444 | H17: ='Outputs Monthly'!F42+'Outputs Monthly'!F46+'Outputs Monthly'!F50 -> 0 | I17: ='Outputs Monthly'!F54+'Outputs Monthly'!F58+'Outputs Monthly'!F62 -> 0 | J17: 847
C18: # within 2 business days | F18: 384 | G18: 430 | J18: 814
C19: % mtg level | F19: =F18/F17 -> 0.952853598 | G19: =G18/G17 -> 0.9684684685 | H19: =H18/H17 ->  | I19: =I18/I17 ->  | J19: =J18/J17 -> 0.961038961 | ZZ19: PABS4.0
A20: Traffic (UTC) | C20: Total # UTC | D20: 0.8 | E20: 3 | F20: ='Outputs Monthly'!G18+'Outputs Monthly'!G22+'Outputs Monthly'!G26 -> 1483 | G20: ='Outputs Monthly'!G30+'Outputs Monthly'!G34+'Outputs Monthly'!G38 -> 1635 | H20: ='Outputs Monthly'!G42+'Outputs Monthly'!G46+'Outputs Monthly'!G50 -> 0 | I20: ='Outputs Monthly'!G54+'Outputs Monthly'!G58+'Outputs Monthly'!G62 -> 0 | J20: 3118
C21: # within 3 business days | F21: 1389 | G21: 1494 | J21: 2883
C22: % mtg level | F22: =F21/F20 -> 0.9366149697 | G22: =G21/G20 -> 0.9137614679 | H22: =H21/H20 ->  | I22: =I21/I20 ->  | J22: =J21/J20 -> 0.9246311738
A23: B | B23: Civil
A24: Circuit (cases) | C24: Total # of cases | D24: 0.8 | E24: 2 | F24: ='Outputs Monthly'!J18+'Outputs Monthly'!J22+'Outputs Monthly'!J26 -> 1033 | G24: ='Outputs Monthly'!J30+'Outputs Monthly'!J34+'Outputs Monthly'!J38 -> 1071 | H24: ='Outputs Monthly'!J42+'Outputs Monthly'!J46+'Outputs Monthly'!J50 -> 0 | I24: ='Outputs Monthly'!J54+'Outputs Monthly'!J58+'Outputs Monthly'!J62 -> 0 | J24: 2104
C25: # within 2 business days | F25: 932 | G25: 978 | J25: 1910
C26: % mtg level | F26: =F25/F24 -> 0.9022265247 | G26: =G25/G24 -> 0.9131652661 | H26: =H25/H24 ->  | I26: =I25/I24 ->  | J26: =J25/J24 -> 0.9077946768
A27: County (cases) | C27: Total # of cases | D27: 0.8 | E27: 2 | F27: ='Outputs Monthly'!K18+'Outputs Monthly'!K22+'Outputs Monthly'!K26 -> 1977 | G27: ='Outputs Monthly'!K30+'Outputs Monthly'!K34+'Outputs Monthly'!K38 -> 1935 | H27: ='Outputs Monthly'!K42+'Outputs Monthly'!K46+'Outputs Monthly'!K50 -> 0 | I27: ='Outputs Monthly'!K54+'Outputs Monthly'!K58+'Outputs Monthly'!K62 -> 0 | J27: 3912
C28: # within 2 business days | F28: 1963 | G28: 1916 | J28: 3879
C29: % mtg level | F29: =F28/F27 -> 0.9929185635 | G29: =G28/G27 -> 0.9901808786 | H29: =H28/H27 ->  | I29: =I28/I27 ->  | J29: =J28/J27 -> 0.9915644172
A30: Traffic (UTC) | C30: Total # UTC | D30: 0.8 | E30: 4 | F30: ='Outputs Monthly'!L18+'Outputs Monthly'!L22+'Outputs Monthly'!L26 -> 9839 | G30: ='Outputs Monthly'!L30+'Outputs Monthly'!L34+'Outputs Monthly'!L38 -> 10969 | H30: ='Outputs Monthly'!L42+'Outputs Monthly'!L46+'Outputs Monthly'!L50 -> 0 | I30: ='Outputs Monthly'!L54+'Outputs Monthly'!L58+'Outputs Monthly'!L62 -> 0 | J30: 20808
C31: # within 4 business days | F31: 9769 | G31: 10857 | J31: 20626
C32: % mtg level | F32: =F31/F30 -> 0.9928854558 | G32: =G31/G30 -> 0.9897894065 | H32: =H31/H30 ->  | I32: =I31/I30 ->  | J32: =J31/J30 -> 0.9912533641
A33: Circuit Probate (cases) | C33: Total # of cases | D33: 0.8 | E33: 2 | F33: ='Outputs Monthly'!M18+'Outputs Monthly'!M22+'Outputs Monthly'!M26 -> 1199 | G33: ='Outputs Monthly'!M30+'Outputs Monthly'!M34+'Outputs Monthly'!M38 -> 1231 | H33: ='Outputs Monthly'!M42+'Outputs Monthly'!M46+'Outputs Monthly'!M50 -> 0 | I33: ='Outputs Monthly'!M54+'Outputs Monthly'!M58+'Outputs Monthly'!M62 -> 0 | J33: 2430
C34: # within 2 business days | F34: 1148 | G34: 1214 | J34: 2362
C35: % mtg level | F35: =F34/F33 -> 0.9574645538 | G35: =G34/G33 -> 0.9861900894 | H35: =H34/H33 ->  | I35: =I34/I33 ->  | J35: =J34/J33 -> 0.9720164609
A36: Family (cases) | C36: Total # of cases | D36: 0.8 | E36: 3 | F36: ='Outputs Monthly'!N18+'Outputs Monthly'!N22+'Outputs Monthly'!N26 -> 1612 | G36: ='Outputs Monthly'!N30+'Outputs Monthly'!N34+'Outputs Monthly'!N38 -> 1709 | H36: ='Outputs Monthly'!N42+'Outputs Monthly'!N46+'Outputs Monthly'!N50 -> 0 | I36: ='Outputs Monthly'!N54+'Outputs Monthly'!N58+'Outputs Monthly'!N62 -> 0 | J36: 3321
C37: # within 3 business days | F37: 1604 | G37: 1699 | J37: 3303
C38: % mtg level | F38: =F37/F36 -> 0.9950372208 | G38: =G37/G36 -> 0.9941486249 | H38: =H37/H36 ->  | I38: =I37/I36 ->  | J38: =J37/J36 -> 0.9945799458
A39: Juvenile Dependency (cases) | C39: Total # of cases | D39: 0.8 | E39: 2 | F39: ='Outputs Monthly'!O18+'Outputs Monthly'!O22+'Outputs Monthly'!O26 -> 76 | G39: ='Outputs Monthly'!O30+'Outputs Monthly'!O34+'Outputs Monthly'!O38 -> 98 | H39: ='Outputs Monthly'!O42+'Outputs Monthly'!O46+'Outputs Monthly'!O50 -> 0 | I39: ='Outputs Monthly'!O54+'Outputs Monthly'!O58+'Outputs Monthly'!O62 -> 0 | J39: 174
C40: # within 2 business days | F40: 76 | G40: 98 | J40: 174
C41: % mtg level | F41: =F40/F39 -> 1 | G41: =G40/G39 -> 1 | H41: =H40/H39 ->  | I41: =I40/I39 ->  | J41: =J40/J39 -> 1
A44: Timeliness Measures #2: Annual Projected % of docket entries entered within X business days after clock in/action taken date.
D45: Performance Measure Standard | E45: # of business days | F45: 10/1/15 - 12/31/15 | G45: 1/1/16 - 3/31/16 | H45: 4/1/16 - 6/30/16 | I45: 7/1/16 - 9/30/16 | K45: =F45 -> 10/1/15 - 12/31/15 | M45: =G45 -> 1/1/16 - 3/31/16 | O45: =H45 -> 4/1/16 - 6/30/16 | Q45: =I45 -> 7/1/16 - 9/30/16
A46: A | B46: Criminal | E46: 38991 | F46: =F10 -> 1st Quarter | G46: =G10 -> 2nd Quarter | H46: 3rd Quarter | I46: 4th Quarter | J46: Year-to-Date | K46: Reason Code | L46: Actions to Improve | M46: Reason Code | N46: Actions to Improve | O46: Reason Code | P46: Actions to Improve | Q46: Reason Code | R46: Actions to Improve
A47: Circuit (defendants) | C47: Total # of docket entries | D47: 0.8 | E47: 3 | F47: 74749 | G47: 81204 | J47: =SUM(F47:I47) -> 155953
C48: # within 3 business days | F48: 73630 | G48: 79168 | J48: =SUM(F48:I48) -> 152798
C49: % mtg level | F49: =F48/F47 -> 0.9850299001 | G49: =G48/G47 -> 0.9749273435 | H49: =H48/H47 ->  | I49: =I48/I47 ->  | J49: =J48/J47 -> 0.979769546
A50: County (defendants) | C50: Total # of docket entries | D50: 0.8 | E50: 3 | F50: 38447 | G50: 41600 | J50: 80047
C51: # within 3 business days | F51: 37832 | G51: 40409 | J51: 78241
C52: % mtg level | F52: =F51/F50 -> 0.9840039535 | G52: =G51/G50 -> 0.9713701923 | H52: =H51/H50 ->  | I52: =I51/I50 ->  | J52: =J51/J50 -> 0.977438255
A53: Juvenile Delinquency (juveniles) | C53: Total # of docket entries | D53: 0.8 | E53: 3 | F53: 16689 | G53: 17452 | J53: 34141
C54: # within 3 business days | F54: 16632 | G54: 17280 | J54: 33912
C55: % mtg level | F55: =F54/F53 -> 0.9965845767 | G55: =G54/G53 -> 0.9901443961 | H55: =H54/H53 ->  | I55: =I54/I53 ->  | J55: =J54/J53 -> 0.9932925222
A56: Traffic (UTC) | C56: Total # of docket entries | D56: 0.8 | E56: 3 | F56: 29588 | G56: 32413 | J56: 62001
C57: # within 3 business days | F57: 29000 | G57: 31344 | J57: 60344
C58: % mtg level | F58: =F57/F56 -> 0.9801270785 | G58: =G57/G56 -> 0.9670194058 | H58: =H57/H56 ->  | I58: =I57/I56 ->  | J58: =J57/J56 -> 0.9732746246
A59: B | B59: Civil
A60: Circuit (cases) | C60: Total # of docket entries | D60: 0.8 | E60: 3 | F60: 49939 | G60: 48803 | J60: 98742
C61: # within 3 business days | F61: 49388 | G61: 48105 | J61: 97493
C62: % mtg level | F62: =F61/F60 -> 0.9889665392 | G62: =G61/G60 -> 0.9856976006 | H62: =H61/H60 ->  | I62: =I61/I60 ->  | J62: =J61/J60 -> 0.987350874
A63: County (cases) | C63: Total # of docket entries | D63: 0.8 | E63: 3 | F63: 21702 | G63: 21885 | J63: 43587
C64: # within 3 business days | F64: 21429 | G64: 21342 | J64: 42771
C65: % mtg level | F65: =F64/F63 -> 0.9874205142 | G65: =G64/G63 -> 0.9751884853 | H65: =H64/H63 ->  | I65: =I64/I63 ->  | J65: =J64/J63 -> 0.9812788217
A66: Traffic (UTC) | C66: Total # of docket entries | D66: 0.8 | E66: 4 | F66: 21581 | G66: 22078 | J66: 43659
C67: # within 4 business days | F67: 20990 | G67: 21314 | J67: 42304
C68: % mtg level | F68: =F67/F66 -> 0.9726148001 | G68: =G67/G66 -> 0.9653954163 | H68: =H67/H66 ->  | I68: =I67/I66 ->  | J68: =J67/J66 -> 0.9689640166
A69: Circuit Probate (cases) | C69: Total # of docket entries | D69: 0.8 | E69: 3 | F69: 17439 | G69: 19449 | J69: 36888
C70: # within 3 business days | F70: 17322 | G70: 19314 | J70: 36636
C71: % mtg level | F71: =F70/F69 -> 0.9932908997 | G71: =G70/G69 -> 0.9930587691 | H71: =H70/H69 ->  | I71: =I70/I69 ->  | J71: =J70/J69 -> 0.9931685101
A72: Family (cases) | C72: Total # of docket entries | D72: 0.8 | E72: 3 | F72: 38357 | G72: 39350 | J72: 77707
C73: # within 3 business days | F73: 38007 | G73: 38406 | J73: 76413
C74: % mtg level | F74: =F73/F72 -> 0.9908751988 | G74: =G73/G72 -> 0.9760101652 | H74: =H73/H72 ->  | I74: =I73/I72 ->  | J74: =J73/J72 -> 0.9833477036
A75: Juvenile Dependency (juveniles) | C75: Total # of docket entries | D75: 0.8 | E75: 3 | F75: 7012 | G75: 7783 | J75: 14795
C76: # within 3 business days | F76: 7002 | G76: 7740 | J76: 14742
C77: % mtg level | F77: =F76/F75 -> 0.9985738734 | G77: =G76/G75 -> 0.9944751381 | H77: =H76/H75 ->  | I77: =I76/I75 ->  | J77: =J76/J75 -> 0.9964177087
B80: Notes:
B81: 1.) Reason Codes for Timeliness have been updated for CFY 2015/2016 to include Internal and External qualifiers. Use the "Comments / Action to Improve" field to further explain why the standard was not met for an "External" or Internal" reason.
C82: If the the reason was "Internal", include an expected timeframe the reason will be corrected.
B83: 2 Cases/Defendants Output numbers are imported from the Outputs Monthly tab of this workbook.

Sheet CAP Count Summary (hidden)
A1: County | B1: TIMELINESS STANDARD ONE (New Cases Opened) | W1: TIMELINESS STANDARD TWO (Docket Entries Processed) | AR1: Sent Date
B2: Circuit Criminal Reason | C2: Improve Action | D2: County Criminal Reason | E2: Improve Action | F2: Juvenile Delinquency Reason | G2: Improve Action | H2: Criminal Traffic Reason | I2: Improve Action | J2: Circuit Civil Reason | K2: Improve Action | L2: County Civil Reason | M2: Improve Action | N2: Civil Traffic Reason | O2: Improve Action | P2: Probate Reason | Q2: Improve Action | R2: Family Reason | S2: Improve Action | T2: Juvenile Dependency Reason | U2: Improve Action | W2: Circuit Criminal Reason | X2: Improve Action | Y2: County Criminal Reason | Z2: Improve Action | AA2: Juvenile Delinquency Reason | AB2: Improve Action | AC2: Criminal Traffic Reason | AD2: Improve Action | AE2: Circuit Civil Reason | AF2: Improve Action | AG2: County Civil Reason | AH2: Improve Action | AI2: Civil Traffic Reason | AJ2: Improve Action | AK2: Probate Reason | AL2: Improve Action | AM2: Family Reason | AN2: Improve Action | AO2: Juvenile Dependency Reason | AP2: Improve Action
A4: Alachua | AR4: 20140220
A5: Baker | AR5: 20140207
A6: Bay | AR6: 20140218
A7: Bradford | AA7: Procedural | AB7: We are a small county with several Supreme Court death warrant appeals that had priority. | AO7: Procedural | AP7: We are a small county with several Supreme Court death warrant appeals that had priority. | AR7: 20140218
A8: Brevard | AR8: 20140218
A9: Broward | P9: E-Filing | Q9: A high percentage of cases are rejected. When cases are resubmitted, the calculation for timeliness is based on the original file date. | AO9: Systems | AP9: The division is still adjusting to new case maintenance system. E-filing should assist with improving the timeliness. | AR9: 20140218
A10: Calhoun | AR10: 20140217
A11: Charlotte | AR11: 20140219
A12: Citrus | AR12: 20140206
A13: Clay | AR13: 20140218
A14: Collier | AR14: 20140220
A15: Columbia | T15: Staffing - Insufficient Personnel | U15: This is a one employee department. Employees in other departments will be used to cover this when employee is out. | AR15: 20140219
A16: Dade | D16: Staffing - Training Required | E16: Training efforts have been completed. We anticipate rate will improve in the next quarter. | AR16: 20140219
A17: Desoto | AR17: 20140206
A18: Dixie
A19: Duval | AR19: 20140225
A20: Escambia | AA20: Staffing - Training Required | AB20: Additional cross training will occur immediatley | AR20: 20140210
A21: Flagler | AR21: 20140214
A22: Franklin | AR22: 20140212
A23: Gadsden | J23: E-Filing | K23: As the problems get worked out this will improve. | AR23: 20140218
A24: Gilchrist
A25: Glades | AI25: Systems | AJ25: Clericus was implemented 9/27/2013 and we are still learning the system. | AR25: 20140224
A26: Gulf | AR26: 20140220
A27: Hamilton | AR27: 20140211
A28: Hardee | AR28: 20140220
A29: Hendry | AR29: 20140219
A30: Hernando | AR30: 20140220
A31: Highlands | AR31: 20140206
A32: Hillsborough | AR32: 20140220
A33: Holmes | AR33: 20140219
A34: Indian River | AR34: 20140208
A35: Jackson | AR35: 20140214
A36: Jefferson | AR36: 20140210
A37: Lafayette | AR37: 20140219
A38: Lake | AR38: 20140219
A39: Lee | AR39: 20140218
A40: Leon | AR40: 20140227
A41: LEVY | AR41: 20140217
A42: Liberty | B42: Staffing - Training Required | C42: Due to the sudden retirement of a 30 year employee, we are training new staff. | D42: Staffing - Training Required | E42: Due to the sudden retirement of a 30 year employee, we are training new staff. | AA42: Staffing - Training Required | AB42: Due to the sudden retirement of a 30 year employee, we are training new staff. | AK42: Staffing - Training Required | AL42: Due to the sudden retirement of a 30 year employee, we are training new staff. | AR42: 20140211
A43: Madison | AR43: 20140214
A44: Manatee | AR44: 20140220
A45: Marion | H45: Procedural | I45: Electornic citations led to errors in entering zeros as O's and O's as zeros in the citation number. We have asked the agencies to use a / thru zeros and staff to be more careful in keying. | AE45: E-Filing | AF45: Established a mandatory 1.5 hrs/day for all civil staff to process efilings | AR45: 20140211
A46: Martin | AR46: 20140217
A47: Monroe | AR47: 20140213
A48: NASSAU | AR48: 20140220
A49: Okaloosa | AR49: 20140211
A50: Okeechobee | AR50: 20140217
A51: Orange | AR51: 20140219
A52: Osceola | N52: Systems | O52: We experienced problems entering traffic citations with our new Case Management System. These problems are being corrected in our next release that will go live on 1/21/2014. Also, in February we go live with Ecitations and this will help speed up the process. | AR52: 20140219
A53: Palm Beach | AR53: 20140213
A54: Pasco | AR54: 20140220
A55: Pinellas | AR55: 20140220
A56: Polk | P56: Procedural | Q56: Standards reviewed with staff when processing paper filings. eFiled cases were the focus when it should've been paper & electronic equally. Cases will be monitored more closely by management. | AR56: 20140220
A57: Putnam | L57: Staffing - Insufficient Personnel | M57: Incidental - Bereavement & Sick Leave | P57: Staffing - Training Required | Q57: Reorganizing Office Staff at this Time | AE57: Staffing - Insufficient Personnel | AF57: Incidental - Bereavement & Sick Leave | AG57: Staffing - Insufficient Personnel | AH57: Incidental - Bereavement & Sick Leave | AK57: Staffing - Insufficient Personnel | AL57: Incidental - Bereavement & Sick Leave | AR57: 20140218
A58: Santa Rosa | AR58: 20140219
A59: Sarasota | AR59: 20140219
A60: Seminole | AR60: 20140207
A61: St. Johns | AR61: 20140214
A62: St. Lucie | AR62: 20140210
A63: Sumter | B63: Staffing - Insufficient Personnel | C63: Additional staff being hired to work in felony division to cover increased filings | AR63: 20140210
A64: Suwannee | Y64: Staffing - Training Required | Z64: Additional training on meeting Performance Measures | AA64: Staffing - Training Required | AB64: Additional training on meeting Performance Measures | AC64: Staffing - Training Required | AD64: Additional training on meeting Performance Measures | AR64: 20140217
A65: Taylor | J65: E-Filing | K65: Correct issues of filings not moving from eportal to CMS | AR65: 20140211
A66: Union | AR66: 20140219
A67: Volusia | AR67: 20140218
A68: Wakulla | AR68: 20140214
A69: Walton | AR69: 20140218
A70: Washington | W70: Other | X70: Coversion, server, and move downtime | AR70: 20140217

Sheet Action Plan Summary
A2: County Fiscal Year 2015 - 2016
A3: Timeliness Quarterly Action Plan Form for CCOC
C5: Report Month of (Quarter Ending): | D5: ='Outputs Monthly'!D6:E6 -> Mar | F5: Contact:
C6: Version #: | D6: ='Outputs Monthly'!D7:E7 -> 2 | F6: Telephone:
C7: County: | D7: ='Outputs Monthly'!D8:E8 -> Brevard | F7: E-mail:
A9: Timeliness Measeure # 1 | B9: Quarter | C9: CCOC Standard | D9: ='Timeliness Quarterly'!E9 -> # Of Business Days | E9: Clerk Performance | F9: Reason Code | G9: Current Actions to Improve
A10: Circuit Criminal | B10: ='Timeliness Quarterly'!$F$9 -> 10/1/15 - 12/31/15 | C10: ='Timeliness Quarterly'!$D$11 -> 0.8 | D10: ='Timeliness Quarterly'!$E$11 -> 2 | E10: =IF(IFERROR('Timeliness Quarterly'!F$13,"error")="error","",IF('Timeliness Quarterly'!F$13<'Timeliness Quarterly'!$D$11,'Timeliness Quarterly'!F$13,"")) ->  | F10: =IF(IFERROR('Timeliness Quarterly'!$K$11,"error")="error","",IF('Timeliness Quarterly'!$K$11=0,"",'Timeliness Quarterly'!$K$11)) ->  | G10: =IF(IFERROR('Timeliness Quarterly'!$L$11,"error")="error","",IF('Timeliness Quarterly'!$L$11=0,"",'Timeliness Quarterly'!$L$11)) -> 
B11: ='Timeliness Quarterly'!$G$9 -> 1/1/16 - 3/31/16 | C11: ='Timeliness Quarterly'!$D$11 -> 0.8 | D11: ='Timeliness Quarterly'!$E$11 -> 2 | E11: =IF(IFERROR('Timeliness Quarterly'!G$13,"error")="error","",IF('Timeliness Quarterly'!G$13<'Timeliness Quarterly'!$D$11,'Timeliness Quarterly'!G$13,"")) ->  | F11: =IF(IFERROR('Timeliness Quarterly'!$M$11,"error")="error","",IF('Timeliness Quarterly'!$M$11=0,"",'Timeliness Quarterly'!$M$11)) ->  | G11: =IF(IFERROR('Timeliness Quarterly'!$N$11,"error")="error","",IF('Timeliness Quarterly'!$N$11=0,"",'Timeliness Quarterly'!$N$11)) -> 
B12: ='Timeliness Quarterly'!$H$9 -> 4/1/16 - 6/30/16 | C12: ='Timeliness Quarterly'!$D$11 -> 0.8 | D12: ='Timeliness Quarterly'!$E$11 -> 2 | E12: =IF(IFERROR('Timeliness Quarterly'!H$13,"error")="error","",IF('Timeliness Quarterly'!H$13<'Timeliness Quarterly'!$D$11,'Timeliness Quarterly'!H$13,"")) ->  | F12: =IF(IFERROR('Timeliness Quarterly'!$O$11,"error")="error","",IF('Timeliness Quarterly'!$O$11=0,"",'Timeliness Quarterly'!$O$11)) ->  | G12: =IF(IFERROR('Timeliness Quarterly'!$P$11,"error")="error","",IF('Timeliness Quarterly'!$P$11=0,"",'Timeliness Quarterly'!$P$11)) -> 
B13: ='Timeliness Quarterly'!$I$9 -> 7/1/16 - 9/30/16 | C13: ='Timeliness Quarterly'!$D$11 -> 0.8 | D13: ='Timeliness Quarterly'!$E$11 -> 2 | E13: =IF(IFERROR('Timeliness Quarterly'!I$13,"error")="error","",IF('Timeliness Quarterly'!I$13<'Timeliness Quarterly'!$D$11,'Timeliness Quarterly'!I$13,"")) ->  | F13: =IF(IFERROR('Timeliness Quarterly'!$Q$11,"error")="error","",IF('Timeliness Quarterly'!$Q$11=0,"",'Timeliness Quarterly'!$Q$11)) ->  | G13: =IF(IFERROR('Timeliness Quarterly'!$R$11,"error")="error","",IF('Timeliness Quarterly'!$R$11=0,"",'Timeliness Quarterly'!$R$11)) -> 
A14: County Criminal | B14: ='Timeliness Quarterly'!$F$9 -> 10/1/15 - 12/31/15 | C14: ='Timeliness Quarterly'!$D$14 -> 0.8 | D14: ='Timeliness Quarterly'!$E$14 -> 3 | E14: =IF(IFERROR('Timeliness Quarterly'!F$16,"error")="error","",IF('Timeliness Quarterly'!F$16<'Timeliness Quarterly'!$D$14,'Timeliness Quarterly'!F$16,"")) ->  | F14: =IF(IFERROR('Timeliness Quarterly'!$K$14,"error")="error","",IF('Timeliness Quarterly'!$K$14=0,"",'Timeliness Quarterly'!$K$14)) ->  | G14: =IF(IFERROR('Timeliness Quarterly'!$L$14,"error")="error","",IF('Timeliness Quarterly'!$L$14=0,"",'Timeliness Quarterly'!$L$14)) -> 
B15: ='Timeliness Quarterly'!$G$9 -> 1/1/16 - 3/31/16 | C15: ='Timeliness Quarterly'!$D$14 -> 0.8 | D15: ='Timeliness Quarterly'!$E$14 -> 3 | E15: =IF(IFERROR('Timeliness Quarterly'!G$16,"error")="error","",IF('Timeliness Quarterly'!G$16<'Timeliness Quarterly'!$D$14,'Timeliness Quarterly'!G$16,"")) ->  | F15: =IF(IFERROR('Timeliness Quarterly'!$M$14,"error")="error","",IF('Timeliness Quarterly'!$M$14=0,"",'Timeliness Quarterly'!$M$14)) ->  | G15: =IF(IFERROR('Timeliness Quarterly'!$N$14,"error")="error","",IF('Timeliness Quarterly'!$N$14=0,"",'Timeliness Quarterly'!$N$14)) -> 
B16: ='Timeliness Quarterly'!$H$9 -> 4/1/16 - 6/30/16 | C16: ='Timeliness Quarterly'!$D$14 -> 0.8 | D16: ='Timeliness Quarterly'!$E$14 -> 3 | E16: =IF(IFERROR('Timeliness Quarterly'!H$16,"error")="error","",IF('Timeliness Quarterly'!H$16<'Timeliness Quarterly'!$D$14,'Timeliness Quarterly'!H$16,"")) ->  | F16: =IF(IFERROR('Timeliness Quarterly'!$O$14,"error")="error","",IF('Timeliness Quarterly'!$O$14=0,"",'Timeliness Quarterly'!$O$14)) ->  | G16: =IF(IFERROR('Timeliness Quarterly'!$P$14,"error")="error","",IF('Timeliness Quarterly'!$P$14=0,"",'Timeliness Quarterly'!$P$14)) -> 
B17: ='Timeliness Quarterly'!$I$9 -> 7/1/16 - 9/30/16 | C17: ='Timeliness Quarterly'!$D$14 -> 0.8 | D17: ='Timeliness Quarterly'!$E$14 -> 3 | E17: =IF(IFERROR('Timeliness Quarterly'!I$16,"error")="error","",IF('Timeliness Quarterly'!I$16<'Timeliness Quarterly'!$D$14,'Timeliness Quarterly'!I$16,"")) ->  | F17: =IF(IFERROR('Timeliness Quarterly'!$Q$14,"error")="error","",IF('Timeliness Quarterly'!$Q$14=0,"",'Timeliness Quarterly'!$Q$14)) ->  | G17: =IF(IFERROR('Timeliness Quarterly'!$R$14,"error")="error","",IF('Timeliness Quarterly'!$R$14=0,"",'Timeliness Quarterly'!$R$14)) -> 
A18: Juvenile Delinquency | B18: ='Timeliness Quarterly'!$F$9 -> 10/1/15 - 12/31/15 | C18: ='Timeliness Quarterly'!$D$17 -> 0.8 | D18: ='Timeliness Quarterly'!$E$17 -> 2 | E18: =IF(IFERROR('Timeliness Quarterly'!F$19,"error")="error","",IF('Timeliness Quarterly'!F$19<'Timeliness Quarterly'!$D$17,'Timeliness Quarterly'!F$19,"")) ->  | F18: =IF(IFERROR('Timeliness Quarterly'!$K$17,"error")="error","",IF('Timeliness Quarterly'!$K$17=0,"",'Timeliness Quarterly'!$K$17)) ->  | G18: =IF(IFERROR('Timeliness Quarterly'!$L$17,"error")="error","",IF('Timeliness Quarterly'!$L$17=0,"",'Timeliness Quarterly'!$L$17)) -> 
B19: ='Timeliness Quarterly'!$G$9 -> 1/1/16 - 3/31/16 | C19: ='Timeliness Quarterly'!$D$17 -> 0.8 | D19: ='Timeliness Quarterly'!$E$17 -> 2 | E19: =IF(IFERROR('Timeliness Quarterly'!G$19,"error")="error","",IF('Timeliness Quarterly'!G$19<'Timeliness Quarterly'!$D$17,'Timeliness Quarterly'!G$19,"")) ->  | F19: =IF(IFERROR('Timeliness Quarterly'!$M$17,"error")="error","",IF('Timeliness Quarterly'!$M$17=0,"",'Timeliness Quarterly'!$M$17)) ->  | G19: =IF(IFERROR('Timeliness Quarterly'!$N$17,"error")="error","",IF('Timeliness Quarterly'!$N$17=0,"",'Timeliness Quarterly'!$N$17)) -> 
B20: ='Timeliness Quarterly'!$H$9 -> 4/1/16 - 6/30/16 | C20: ='Timeliness Quarterly'!$D$17 -> 0.8 | D20: ='Timeliness Quarterly'!$E$17 -> 2 | E20: =IF(IFERROR('Timeliness Quarterly'!H$19,"error")="error","",IF('Timeliness Quarterly'!H$19<'Timeliness Quarterly'!$D$17,'Timeliness Quarterly'!H$19,"")) ->  | F20: =IF(IFERROR('Timeliness Quarterly'!$O$17,"error")="error","",IF('Timeliness Quarterly'!$O$17=0,"",'Timeliness Quarterly'!$O$17)) ->  | G20: =IF(IFERROR('Timeliness Quarterly'!$P$17,"error")="error","",IF('Timeliness Quarterly'!$P$17=0,"",'Timeliness Quarterly'!$P$17)) -> 
B21: ='Timeliness Quarterly'!$I$9 -> 7/1/16 - 9/30/16 | C21: ='Timeliness Quarterly'!$D$17 -> 0.8 | D21: ='Timeliness Quarterly'!$E$17 -> 2 | E21: =IF(IFERROR('Timeliness Quarterly'!I$19,"error")="error","",IF('Timeliness Quarterly'!I$19<'Timeliness Quarterly'!$D$17,'Timeliness Quarterly'!I$19,"")) ->  | F21: =IF(IFERROR('Timeliness Quarterly'!$Q$17,"error")="error","",IF('Timeliness Quarterly'!$Q$17=0,"",'Timeliness Quarterly'!$Q$17)) ->  | G21: =IF(IFERROR('Timeliness Quarterly'!$R$17,"error")="error","",IF('Timeliness Quarterly'!$R$17=0,"",'Timeliness Quarterly'!$R$17)) -> 
A22: Criminal Traffic | B22: ='Timeliness Quarterly'!$F$9 -> 10/1/15 - 12/31/15 | C22: ='Timeliness Quarterly'!$D$20 -> 0.8 | D22: ='Timeliness Quarterly'!$E$20 -> 3 | E22: =IF(IFERROR('Timeliness Quarterly'!F$22,"error")="error","",IF('Timeliness Quarterly'!F$22<'Timeliness Quarterly'!$D$20,'Timeliness Quarterly'!F$22,"")) ->  | F22: =IF(IFERROR('Timeliness Quarterly'!$K$20,"error")="error","",IF('Timeliness Quarterly'!$K$20=0,"",'Timeliness Quarterly'!$K$20)) ->  | G22: =IF(IFERROR('Timeliness Quarterly'!$L$20,"error")="error","",IF('Timeliness Quarterly'!$L$20=0,"",'Timeliness Quarterly'!$L$20)) -> 
B23: ='Timeliness Quarterly'!$G$9 -> 1/1/16 - 3/31/16 | C23: ='Timeliness Quarterly'!$D$20 -> 0.8 | D23: ='Timeliness Quarterly'!$E$20 -> 3 | E23: =IF(IFERROR('Timeliness Quarterly'!G$22,"error")="error","",IF('Timeliness Quarterly'!G$22<'Timeliness Quarterly'!$D$20,'Timeliness Quarterly'!G$22,"")) ->  | F23: =IF(IFERROR('Timeliness Quarterly'!$M$20,"error")="error","",IF('Timeliness Quarterly'!$M$20=0,"",'Timeliness Quarterly'!$M$20)) ->  | G23: =IF(IFERROR('Timeliness Quarterly'!$N$20,"error")="error","",IF('Timeliness Quarterly'!$N$20=0,"",'Timeliness Quarterly'!$N$20)) -> 
B24: ='Timeliness Quarterly'!$H$9 -> 4/1/16 - 6/30/16 | C24: ='Timeliness Quarterly'!$D$20 -> 0.8 | D24: ='Timeliness Quarterly'!$E$20 -> 3 | E24: =IF(IFERROR('Timeliness Quarterly'!H$22,"error")="error","",IF('Timeliness Quarterly'!H$22<'Timeliness Quarterly'!$D$20,'Timeliness Quarterly'!H$22,"")) ->  | F24: =IF(IFERROR('Timeliness Quarterly'!$O$20,"error")="error","",IF('Timeliness Quarterly'!$O$20=0,"",'Timeliness Quarterly'!$O$20)) ->  | G24: =IF(IFERROR('Timeliness Quarterly'!$P$20,"error")="error","",IF('Timeliness Quarterly'!$P$20=0,"",'Timeliness Quarterly'!$P$20)) -> 
B25: ='Timeliness Quarterly'!$I$9 -> 7/1/16 - 9/30/16 | C25: ='Timeliness Quarterly'!$D$20 -> 0.8 | D25: ='Timeliness Quarterly'!$E$20 -> 3 | E25: =IF(IFERROR('Timeliness Quarterly'!I$22,"error")="error","",IF('Timeliness Quarterly'!I$22<'Timeliness Quarterly'!$D$20,'Timeliness Quarterly'!I$22,"")) ->  | F25: =IF(IFERROR('Timeliness Quarterly'!$Q$20,"error")="error","",IF('Timeliness Quarterly'!$Q$20=0,"",'Timeliness Quarterly'!$Q$20)) ->  | G25: =IF(IFERROR('Timeliness Quarterly'!$R$20,"error")="error","",IF('Timeliness Quarterly'!$R$20=0,"",'Timeliness Quarterly'!$R$20)) -> 
A26: Circuit Civil | B26: ='Timeliness Quarterly'!$F$9 -> 10/1/15 - 12/31/15 | C26: ='Timeliness Quarterly'!$D$24 -> 0.8 | D26: ='Timeliness Quarterly'!$E$24 -> 2 | E26: =IF(IFERROR('Timeliness Quarterly'!F$26,"error")="error","",IF('Timeliness Quarterly'!F$26<'Timeliness Quarterly'!$D$24,'Timeliness Quarterly'!F$26,"")) ->  | F26: =IF(IFERROR('Timeliness Quarterly'!$K$24,"error")="error","",IF('Timeliness Quarterly'!$K$24=0,"",'Timeliness Quarterly'!$K$24)) ->  | G26: =IF(IFERROR('Timeliness Quarterly'!$L$24,"error")="error","",IF('Timeliness Quarterly'!$L$24=0,"",'Timeliness Quarterly'!$L$24)) -> 
B27: ='Timeliness Quarterly'!$G$9 -> 1/1/16 - 3/31/16 | C27: ='Timeliness Quarterly'!$D$24 -> 0.8 | D27: ='Timeliness Quarterly'!$E$24 -> 2 | E27: =IF(IFERROR('Timeliness Quarterly'!G$26,"error")="error","",IF('Timeliness Quarterly'!G$26<'Timeliness Quarterly'!$D$24,'Timeliness Quarterly'!G$26,"")) ->  | F27: =IF(IFERROR('Timeliness Quarterly'!$M$24,"error")="error","",IF('Timeliness Quarterly'!$M$24=0,"",'Timeliness Quarterly'!$M$24)) ->  | G27: =IF(IFERROR('Timeliness Quarterly'!$N$24,"error")="error","",IF('Timeliness Quarterly'!$N$24=0,"",'Timeliness Quarterly'!$N$24)) -> 
B28: ='Timeliness Quarterly'!$H$9 -> 4/1/16 - 6/30/16 | C28: ='Timeliness Quarterly'!$D$24 -> 0.8 | D28: ='Timeliness Quarterly'!$E$24 -> 2 | E28: =IF(IFERROR('Timeliness Quarterly'!H$26,"error")="error","",IF('Timeliness Quarterly'!H$26<'Timeliness Quarterly'!$D$24,'Timeliness Quarterly'!H$26,"")) ->  | F28: =IF(IFERROR('Timeliness Quarterly'!$O$24,"error")="error","",IF('Timeliness Quarterly'!$O$24=0,"",'Timeliness Quarterly'!$O$24)) ->  | G28: =IF(IFERROR('Timeliness Quarterly'!$P$24,"error")="error","",IF('Timeliness Quarterly'!$P$24=0,"",'Timeliness Quarterly'!$P$24)) -> 
B29: ='Timeliness Quarterly'!$I$9 -> 7/1/16 - 9/30/16 | C29: ='Timeliness Quarterly'!$D$24 -> 0.8 | D29: ='Timeliness Quarterly'!$E$24 -> 2 | E29: =IF(IFERROR('Timeliness Quarterly'!I$26,"error")="error","",IF('Timeliness Quarterly'!I$26<'Timeliness Quarterly'!$D$24,'Timeliness Quarterly'!I$26,"")) ->  | F29: =IF(IFERROR('Timeliness Quarterly'!$Q$24,"error")="error","",IF('Timeliness Quarterly'!$Q$24=0,"",'Timeliness Quarterly'!$Q$24)) ->  | G29: =IF(IFERROR('Timeliness Quarterly'!$R$24,"error")="error","",IF('Timeliness Quarterly'!$R$24=0,"",'Timeliness Quarterly'!$R$24)) -> 
A30: County Civil | B30: ='Timeliness Quarterly'!$F$9 -> 10/1/15 - 12/31/15 | C30: ='Timeliness Quarterly'!$D$27 -> 0.8 | D30: ='Timeliness Quarterly'!$E$27 -> 2 | E30: =IF(IFERROR('Timeliness Quarterly'!F$29,"error")="error","",IF('Timeliness Quarterly'!F$29<'Timeliness Quarterly'!$D$27,'Timeliness Quarterly'!F$29,"")) ->  | F30: =IF(IFERROR('Timeliness Quarterly'!$K$27,"error")="error","",IF('Timeliness Quarterly'!$K$27=0,"",'Timeliness Quarterly'!$K$27)) ->  | G30: =IF(IFERROR('Timeliness Quarterly'!$L$27,"error")="error","",IF('Timeliness Quarterly'!$L$27=0,"",'Timeliness Quarterly'!$L$27)) -> 
B31: ='Timeliness Quarterly'!$G$9 -> 1/1/16 - 3/31/16 | C31: ='Timeliness Quarterly'!$D$27 -> 0.8 | D31: ='Timeliness Quarterly'!$E$27 -> 2 | E31: =IF(IFERROR('Timeliness Quarterly'!G$29,"error")="error","",IF('Timeliness Quarterly'!G$29<'Timeliness Quarterly'!$D$27,'Timeliness Quarterly'!G$29,"")) ->  | F31: =IF(IFERROR('Timeliness Quarterly'!$M$27,"error")="error","",IF('Timeliness Quarterly'!$M$27=0,"",'Timeliness Quarterly'!$M$27)) ->  | G31: =IF(IFERROR('Timeliness Quarterly'!$N$27,"error")="error","",IF('Timeliness Quarterly'!$N$27=0,"",'Timeliness Quarterly'!$N$27)) -> 
B32: ='Timeliness Quarterly'!$H$9 -> 4/1/16 - 6/30/16 | C32: ='Timeliness Quarterly'!$D$27 -> 0.8 | D32: ='Timeliness Quarterly'!$E$27 -> 2 | E32: =IF(IFERROR('Timeliness Quarterly'!H$29,"error")="error","",IF('Timeliness Quarterly'!H$29<'Timeliness Quarterly'!$D$27,'Timeliness Quarterly'!H$29,"")) ->  | F32: =IF(IFERROR('Timeliness Quarterly'!$O$27,"error")="error","",IF('Timeliness Quarterly'!$O$27=0,"",'Timeliness Quarterly'!$O$27)) ->  | G32: =IF(IFERROR('Timeliness Quarterly'!$P$27,"error")="error","",IF('Timeliness Quarterly'!$P$27=0,"",'Timeliness Quarterly'!$P$27)) -> 
B33: ='Timeliness Quarterly'!$I$9 -> 7/1/16 - 9/30/16 | C33: ='Timeliness Quarterly'!$D$27 -> 0.8 | D33: ='Timeliness Quarterly'!$E$27 -> 2 | E33: =IF(IFERROR('Timeliness Quarterly'!I$29,"error")="error","",IF('Timeliness Quarterly'!I$29<'Timeliness Quarterly'!$D$27,'Timeliness Quarterly'!I$29,"")) ->  | F33: =IF(IFERROR('Timeliness Quarterly'!$Q$27,"error")="error","",IF('Timeliness Quarterly'!$Q$27=0,"",'Timeliness Quarterly'!$Q$27)) ->  | G33: =IF(IFERROR('Timeliness Quarterly'!$R$27,"error")="error","",IF('Timeliness Quarterly'!$R$27=0,"",'Timeliness Quarterly'!$R$27)) -> 
A34: Civil Traffic | B34: ='Timeliness Quarterly'!$F$9 -> 10/1/15 - 12/31/15 | C34: ='Timeliness Quarterly'!$D$30 -> 0.8 | D34: ='Timeliness Quarterly'!$E$30 -> 4 | E34: =IF(IFERROR('Timeliness Quarterly'!F$32,"error")="error","",IF('Timeliness Quarterly'!F$32<'Timeliness Quarterly'!$D$30,'Timeliness Quarterly'!F$32,"")) ->  | F34: =IF(IFERROR('Timeliness Quarterly'!$K$30,"error")="error","",IF('Timeliness Quarterly'!$K$30=0,"",'Timeliness Quarterly'!$K$30)) ->  | G34: =IF(IFERROR('Timeliness Quarterly'!$L$30,"error")="error","",IF('Timeliness Quarterly'!$L$30=0,"",'Timeliness Quarterly'!$L$30)) -> 
B35: ='Timeliness Quarterly'!$G$9 -> 1/1/16 - 3/31/16 | C35: ='Timeliness Quarterly'!$D$30 -> 0.8 | D35: ='Timeliness Quarterly'!$E$30 -> 4 | E35: =IF(IFERROR('Timeliness Quarterly'!G$32,"error")="error","",IF('Timeliness Quarterly'!G$32<'Timeliness Quarterly'!$D$30,'Timeliness Quarterly'!G$32,"")) ->  | F35: =IF(IFERROR('Timeliness Quarterly'!$M$30,"error")="error","",IF('Timeliness Quarterly'!$M$30=0,"",'Timeliness Quarterly'!$M$30)) ->  | G35: =IF(IFERROR('Timeliness Quarterly'!$N$30,"error")="error","",IF('Timeliness Quarterly'!$N$30=0,"",'Timeliness Quarterly'!$N$30)) -> 
B36: ='Timeliness Quarterly'!$H$9 -> 4/1/16 - 6/30/16 | C36: ='Timeliness Quarterly'!$D$30 -> 0.8 | D36: ='Timeliness Quarterly'!$E$30 -> 4 | E36: =IF(IFERROR('Timeliness Quarterly'!H$32,"error")="error","",IF('Timeliness Quarterly'!H$32<'Timeliness Quarterly'!$D$30,'Timeliness Quarterly'!H$32,"")) ->  | F36: =IF(IFERROR('Timeliness Quarterly'!$O$30,"error")="error","",IF('Timeliness Quarterly'!$O$30=0,"",'Timeliness Quarterly'!$O$30)) ->  | G36: =IF(IFERROR('Timeliness Quarterly'!$P$30,"error")="error","",IF('Timeliness Quarterly'!$P$30=0,"",'Timeliness Quarterly'!$P$30)) -> 
B37: ='Timeliness Quarterly'!$I$9 -> 7/1/16 - 9/30/16 | C37: ='Timeliness Quarterly'!$D$30 -> 0.8 | D37: ='Timeliness Quarterly'!$E$30 -> 4 | E37: =IF(IFERROR('Timeliness Quarterly'!I$32,"error")="error","",IF('Timeliness Quarterly'!I$32<'Timeliness Quarterly'!$D$30,'Timeliness Quarterly'!I$32,"")) ->  | F37: =IF(IFERROR('Timeliness Quarterly'!$Q$30,"error")="error","",IF('Timeliness Quarterly'!$Q$30=0,"",'Timeliness Quarterly'!$Q$30)) ->  | G37: =IF(IFERROR('Timeliness Quarterly'!$R$30,"error")="error","",IF('Timeliness Quarterly'!$R$30=0,"",'Timeliness Quarterly'!$R$30)) -> 
A38: Probate | B38: ='Timeliness Quarterly'!$F$9 -> 10/1/15 - 12/31/15 | C38: ='Timeliness Quarterly'!$D$33 -> 0.8 | D38: ='Timeliness Quarterly'!$E$33 -> 2 | E38: =IF(IFERROR('Timeliness Quarterly'!F$35,"error")="error","",IF('Timeliness Quarterly'!F$35<'Timeliness Quarterly'!$D$33,'Timeliness Quarterly'!F$35,"")) ->  | F38: =IF(IFERROR('Timeliness Quarterly'!$K$33,"error")="error","",IF('Timeliness Quarterly'!$K$33=0,"",'Timeliness Quarterly'!$K$33)) ->  | G38: =IF(IFERROR('Timeliness Quarterly'!$L$33,"error")="error","",IF('Timeliness Quarterly'!$L$33=0,"",'Timeliness Quarterly'!$L$33)) -> 
B39: ='Timeliness Quarterly'!$G$9 -> 1/1/16 - 3/31/16 | C39: ='Timeliness Quarterly'!$D$33 -> 0.8 | D39: ='Timeliness Quarterly'!$E$33 -> 2 | E39: =IF(IFERROR('Timeliness Quarterly'!G$35,"error")="error","",IF('Timeliness Quarterly'!G$35<'Timeliness Quarterly'!$D$33,'Timeliness Quarterly'!G$35,"")) ->  | F39: =IF(IFERROR('Timeliness Quarterly'!$M$33,"error")="error","",IF('Timeliness Quarterly'!$M$33=0,"",'Timeliness Quarterly'!$M$33)) ->  | G39: =IF(IFERROR('Timeliness Quarterly'!$N$33,"error")="error","",IF('Timeliness Quarterly'!$N$33=0,"",'Timeliness Quarterly'!$N$33)) -> 
B40: ='Timeliness Quarterly'!$H$9 -> 4/1/16 - 6/30/16 | C40: ='Timeliness Quarterly'!$D$33 -> 0.8 | D40: ='Timeliness Quarterly'!$E$33 -> 2 | E40: =IF(IFERROR('Timeliness Quarterly'!H$35,"error")="error","",IF('Timeliness Quarterly'!H$35<'Timeliness Quarterly'!$D$33,'Timeliness Quarterly'!H$35,"")) ->  | F40: =IF(IFERROR('Timeliness Quarterly'!$O$33,"error")="error","",IF('Timeliness Quarterly'!$O$33=0,"",'Timeliness Quarterly'!$O$33)) ->  | G40: =IF(IFERROR('Timeliness Quarterly'!$P$33,"error")="error","",IF('Timeliness Quarterly'!$P$33=0,"",'Timeliness Quarterly'!$P$33)) -> 
B41: ='Timeliness Quarterly'!$I$9 -> 7/1/16 - 9/30/16 | C41: ='Timeliness Quarterly'!$D$33 -> 0.8 | D41: ='Timeliness Quarterly'!$E$33 -> 2 | E41: =IF(IFERROR('Timeliness Quarterly'!I$35,"error")="error","",IF('Timeliness Quarterly'!I$35<'Timeliness Quarterly'!$D$33,'Timeliness Quarterly'!I$35,"")) ->  | F41: =IF(IFERROR('Timeliness Quarterly'!$Q$33,"error")="error","",IF('Timeliness Quarterly'!$Q$33=0,"",'Timeliness Quarterly'!$Q$33)) ->  | G41: =IF(IFERROR('Timeliness Quarterly'!$R$33,"error")="error","",IF('Timeliness Quarterly'!$R$33=0,"",'Timeliness Quarterly'!$R$33)) -> 
A42: Family | B42: ='Timeliness Quarterly'!$F$9 -> 10/1/15 - 12/31/15 | C42: ='Timeliness Quarterly'!$D$36 -> 0.8 | D42: ='Timeliness Quarterly'!$E$36 -> 3 | E42: =IF(IFERROR('Timeliness Quarterly'!F$38,"error")="error","",IF('Timeliness Quarterly'!F$38<'Timeliness Quarterly'!$D$36,'Timeliness Quarterly'!F$38,"")) ->  | F42: =IF(IFERROR('Timeliness Quarterly'!$K$36,"error")="error","",IF('Timeliness Quarterly'!$K$36=0,"",'Timeliness Quarterly'!$K$36)) ->  | G42: =IF(IFERROR('Timeliness Quarterly'!$L$36,"error")="error","",IF('Timeliness Quarterly'!$L$36=0,"",'Timeliness Quarterly'!$L$36)) -> 
B43: ='Timeliness Quarterly'!$G$9 -> 1/1/16 - 3/31/16 | C43: ='Timeliness Quarterly'!$D$36 -> 0.8 | D43: ='Timeliness Quarterly'!$E$36 -> 3 | E43: =IF(IFERROR('Timeliness Quarterly'!G$38,"error")="error","",IF('Timeliness Quarterly'!G$38<'Timeliness Quarterly'!$D$36,'Timeliness Quarterly'!G$38,"")) ->  | F43: =IF(IFERROR('Timeliness Quarterly'!$M$36,"error")="error","",IF('Timeliness Quarterly'!$M$36=0,"",'Timeliness Quarterly'!$M$36)) ->  | G43: =IF(IFERROR('Timeliness Quarterly'!$N$36,"error")="error","",IF('Timeliness Quarterly'!$N$36=0,"",'Timeliness Quarterly'!$N$36)) -> 
B44: ='Timeliness Quarterly'!$H$9 -> 4/1/16 - 6/30/16 | C44: ='Timeliness Quarterly'!$D$36 -> 0.8 | D44: ='Timeliness Quarterly'!$E$36 -> 3 | E44: =IF(IFERROR('Timeliness Quarterly'!H$38,"error")="error","",IF('Timeliness Quarterly'!H$38<'Timeliness Quarterly'!$D$36,'Timeliness Quarterly'!H$38,"")) ->  | F44: =IF(IFERROR('Timeliness Quarterly'!$O$36,"error")="error","",IF('Timeliness Quarterly'!$O$36=0,"",'Timeliness Quarterly'!$O$36)) ->  | G44: =IF(IFERROR('Timeliness Quarterly'!$P$36,"error")="error","",IF('Timeliness Quarterly'!$P$36=0,"",'Timeliness Quarterly'!$P$36)) -> 
B45: ='Timeliness Quarterly'!$I$9 -> 7/1/16 - 9/30/16 | C45: ='Timeliness Quarterly'!$D$36 -> 0.8 | D45: ='Timeliness Quarterly'!$E$36 -> 3 | E45: =IF(IFERROR('Timeliness Quarterly'!I$38,"error")="error","",IF('Timeliness Quarterly'!I$38<'Timeliness Quarterly'!$D$36,'Timeliness Quarterly'!I$38,"")) ->  | F45: =IF(IFERROR('Timeliness Quarterly'!$Q$36,"error")="error","",IF('Timeliness Quarterly'!$Q$36=0,"",'Timeliness Quarterly'!$Q$36)) ->  | G45: =IF(IFERROR('Timeliness Quarterly'!$R$36,"error")="error","",IF('Timeliness Quarterly'!$R$36=0,"",'Timeliness Quarterly'!$R$36)) -> 
A46: Juvenile Dependency | B46: ='Timeliness Quarterly'!$F$9 -> 10/1/15 - 12/31/15 | C46: ='Timeliness Quarterly'!$D$39 -> 0.8 | D46: ='Timeliness Quarterly'!$E$39 -> 2 | E46: =IF(IFERROR('Timeliness Quarterly'!F$41,"error")="error","",IF('Timeliness Quarterly'!F$41<'Timeliness Quarterly'!$D$39,'Timeliness Quarterly'!F$41,"")) ->  | F46: =IF(IFERROR('Timeliness Quarterly'!$K$39,"error")="error","",IF('Timeliness Quarterly'!$K$39=0,"",'Timeliness Quarterly'!$K$39)) ->  | G46: =IF(IFERROR('Timeliness Quarterly'!$L$39,"error")="error","",IF('Timeliness Quarterly'!$L$39=0,"",'Timeliness Quarterly'!$L$39)) -> 
B47: ='Timeliness Quarterly'!$G$9 -> 1/1/16 - 3/31/16 | C47: ='Timeliness Quarterly'!$D$39 -> 0.8 | D47: ='Timeliness Quarterly'!$E$39 -> 2 | E47: =IF(IFERROR('Timeliness Quarterly'!G$41,"error")="error","",IF('Timeliness Quarterly'!G$41<'Timeliness Quarterly'!$D$39,'Timeliness Quarterly'!G$41,"")) ->  | F47: =IF(IFERROR('Timeliness Quarterly'!$M$39,"error")="error","",IF('Timeliness Quarterly'!$M$39=0,"",'Timeliness Quarterly'!$M$39)) ->  | G47: =IF(IFERROR('Timeliness Quarterly'!$N$39,"error")="error","",IF('Timeliness Quarterly'!$N$39=0,"",'Timeliness Quarterly'!$N$39)) -> 
B48: ='Timeliness Quarterly'!$H$9 -> 4/1/16 - 6/30/16 | C48: ='Timeliness Quarterly'!$D$39 -> 0.8 | D48: ='Timeliness Quarterly'!$E$39 -> 2 | E48: =IF(IFERROR('Timeliness Quarterly'!H$41,"error")="error","",IF('Timeliness Quarterly'!H$41<'Timeliness Quarterly'!$D$39,'Timeliness Quarterly'!H$41,"")) ->  | F48: =IF(IFERROR('Timeliness Quarterly'!$O$39,"error")="error","",IF('Timeliness Quarterly'!$O$39=0,"",'Timeliness Quarterly'!$O$39)) ->  | G48: =IF(IFERROR('Timeliness Quarterly'!$P$39,"error")="error","",IF('Timeliness Quarterly'!$P$39=0,"",'Timeliness Quarterly'!$P$39)) -> 
B49: ='Timeliness Quarterly'!$I$9 -> 7/1/16 - 9/30/16 | C49: ='Timeliness Quarterly'!$D$39 -> 0.8 | D49: ='Timeliness Quarterly'!$E$39 -> 2 | E49: =IF(IFERROR('Timeliness Quarterly'!I$41,"error")="error","",IF('Timeliness Quarterly'!I$41<'Timeliness Quarterly'!$D$39,'Timeliness Quarterly'!I$41,"")) ->  | F49: =IF(IFERROR('Timeliness Quarterly'!$Q$39,"error")="error","",IF('Timeliness Quarterly'!$Q$39=0,"",'Timeliness Quarterly'!$Q$39)) ->  | G49: =IF(IFERROR('Timeliness Quarterly'!$R$39,"error")="error","",IF('Timeliness Quarterly'!$R$39=0,"",'Timeliness Quarterly'!$R$39)) -> 
A52: Timeliness Measeure # 2 | B52: Quarter | C52: CCOC Standard | D52: ='Timeliness Quarterly'!E45 -> # of business days | E52: Clerk Performance | F52: Reason Code | G52: Current Actions to Improve
A53: Circuit Criminal | B53: ='Timeliness Quarterly'!$F$45 -> 10/1/15 - 12/31/15 | C53: ='Timeliness Quarterly'!$D$47 -> 0.8 | D53: ='Timeliness Quarterly'!$E$47 -> 3 | E53: =IF(IFERROR('Timeliness Quarterly'!F$49,"error")="error","",IF('Timeliness Quarterly'!F$49<'Timeliness Quarterly'!$D$47,'Timeliness Quarterly'!F$49,"")) ->  | F53: =IF(IFERROR('Timeliness Quarterly'!$K$47,"error")="error","",IF('Timeliness Quarterly'!$K$47=0,"",'Timeliness Quarterly'!$K$47)) ->  | G53: =IF(IFERROR('Timeliness Quarterly'!$L$47,"error")="error","",IF('Timeliness Quarterly'!$L$47=0,"",'Timeliness Quarterly'!$L$47)) -> 
B54: ='Timeliness Quarterly'!$G$45 -> 1/1/16 - 3/31/16 | C54: ='Timeliness Quarterly'!$D$47 -> 0.8 | D54: ='Timeliness Quarterly'!$E$47 -> 3 | E54: =IF(IFERROR('Timeliness Quarterly'!G$49,"error")="error","",IF('Timeliness Quarterly'!G$49<'Timeliness Quarterly'!$D$47,'Timeliness Quarterly'!G$49,"")) ->  | F54: =IF(IFERROR('Timeliness Quarterly'!$M$47,"error")="error","",IF('Timeliness Quarterly'!$M$47=0,"",'Timeliness Quarterly'!$M$47)) ->  | G54: =IF(IFERROR('Timeliness Quarterly'!$N$47,"error")="error","",IF('Timeliness Quarterly'!$N$47=0,"",'Timeliness Quarterly'!$N$47)) -> 
B55: ='Timeliness Quarterly'!$H$45 -> 4/1/16 - 6/30/16 | C55: ='Timeliness Quarterly'!$D$47 -> 0.8 | D55: ='Timeliness Quarterly'!$E$47 -> 3 | E55: =IF(IFERROR('Timeliness Quarterly'!H$49,"error")="error","",IF('Timeliness Quarterly'!H$49<'Timeliness Quarterly'!$D$47,'Timeliness Quarterly'!H$49,"")) ->  | F55: =IF(IFERROR('Timeliness Quarterly'!$O$47,"error")="error","",IF('Timeliness Quarterly'!$O$47=0,"",'Timeliness Quarterly'!$O$47)) ->  | G55: =IF(IFERROR('Timeliness Quarterly'!$P$47,"error")="error","",IF('Timeliness Quarterly'!$P$47=0,"",'Timeliness Quarterly'!$P$47)) -> 
B56: ='Timeliness Quarterly'!$I$45 -> 7/1/16 - 9/30/16 | C56: ='Timeliness Quarterly'!$D$47 -> 0.8 | D56: ='Timeliness Quarterly'!$E$47 -> 3 | E56: =IF(IFERROR('Timeliness Quarterly'!I$49,"error")="error","",IF('Timeliness Quarterly'!I$49<'Timeliness Quarterly'!$D$47,'Timeliness Quarterly'!I$49,"")) ->  | F56: =IF(IFERROR('Timeliness Quarterly'!$Q$47,"error")="error","",IF('Timeliness Quarterly'!$Q$47=0,"",'Timeliness Quarterly'!$Q$47)) ->  | G56: =IF(IFERROR('Timeliness Quarterly'!$R$47,"error")="error","",IF('Timeliness Quarterly'!$R$47=0,"",'Timeliness Quarterly'!$R$47)) -> 
A57: County Criminal | B57: ='Timeliness Quarterly'!$F$45 -> 10/1/15 - 12/31/15 | C57: ='Timeliness Quarterly'!$D$50 -> 0.8 | D57: ='Timeliness Quarterly'!$E$50 -> 3 | E57: =IF(IFERROR('Timeliness Quarterly'!F$52,"error")="error","",IF('Timeliness Quarterly'!F$52<'Timeliness Quarterly'!$D$50,'Timeliness Quarterly'!F$52,"")) ->  | F57: =IF(IFERROR('Timeliness Quarterly'!$K$50,"error")="error","",IF('Timeliness Quarterly'!$K$50=0,"",'Timeliness Quarterly'!$K$50)) ->  | G57: =IF(IFERROR('Timeliness Quarterly'!$L$50,"error")="error","",IF('Timeliness Quarterly'!$L$50=0,"",'Timeliness Quarterly'!$L$50)) -> 
B58: ='Timeliness Quarterly'!$G$45 -> 1/1/16 - 3/31/16 | C58: ='Timeliness Quarterly'!$D$50 -> 0.8 | D58: ='Timeliness Quarterly'!$E$50 -> 3 | E58: =IF(IFERROR('Timeliness Quarterly'!G$52,"error")="error","",IF('Timeliness Quarterly'!G$52<'Timeliness Quarterly'!$D$50,'Timeliness Quarterly'!G$52,"")) ->  | F58: =IF(IFERROR('Timeliness Quarterly'!$M$50,"error")="error","",IF('Timeliness Quarterly'!$M$50=0,"",'Timeliness Quarterly'!$M$50)) ->  | G58: =IF(IFERROR('Timeliness Quarterly'!$N$50,"error")="error","",IF('Timeliness Quarterly'!$N$50=0,"",'Timeliness Quarterly'!$N$50)) -> 
B59: ='Timeliness Quarterly'!$H$45 -> 4/1/16 - 6/30/16 | C59: ='Timeliness Quarterly'!$D$50 -> 0.8 | D59: ='Timeliness Quarterly'!$E$50 -> 3 | E59: =IF(IFERROR('Timeliness Quarterly'!H$52,"error")="error","",IF('Timeliness Quarterly'!H$52<'Timeliness Quarterly'!$D$50,'Timeliness Quarterly'!H$52,"")) ->  | F59: =IF(IFERROR('Timeliness Quarterly'!$O$50,"error")="error","",IF('Timeliness Quarterly'!$O$50=0,"",'Timeliness Quarterly'!$O$50)) ->  | G59: =IF(IFERROR('Timeliness Quarterly'!$P$50,"error")="error","",IF('Timeliness Quarterly'!$P$50=0,"",'Timeliness Quarterly'!$P$50)) -> 
B60: ='Timeliness Quarterly'!$I$45 -> 7/1/16 - 9/30/16 | C60: ='Timeliness Quarterly'!$D$50 -> 0.8 | D60: ='Timeliness Quarterly'!$E$50 -> 3 | E60: =IF(IFERROR('Timeliness Quarterly'!I$52,"error")="error","",IF('Timeliness Quarterly'!I$52<'Timeliness Quarterly'!$D$50,'Timeliness Quarterly'!I$52,"")) ->  | F60: =IF(IFERROR('Timeliness Quarterly'!$Q$50,"error")="error","",IF('Timeliness Quarterly'!$Q$50=0,"",'Timeliness Quarterly'!$Q$50)) ->  | G60: =IF(IFERROR('Timeliness Quarterly'!$R$50,"error")="error","",IF('Timeliness Quarterly'!$R$50=0,"",'Timeliness Quarterly'!$R$50)) -> 
A61: Juvenile Delinquency | B61: ='Timeliness Quarterly'!$F$45 -> 10/1/15 - 12/31/15 | C61: ='Timeliness Quarterly'!$D$53 -> 0.8 | D61: ='Timeliness Quarterly'!$E$53 -> 3 | E61: =IF(IFERROR('Timeliness Quarterly'!F$55,"error")="error","",IF('Timeliness Quarterly'!F$55<'Timeliness Quarterly'!$D$53,'Timeliness Quarterly'!F$55,"")) ->  | F61: =IF(IFERROR('Timeliness Quarterly'!$K$53,"error")="error","",IF('Timeliness Quarterly'!$K$53=0,"",'Timeliness Quarterly'!$K$53)) ->  | G61: =IF(IFERROR('Timeliness Quarterly'!$L$53,"error")="error","",IF('Timeliness Quarterly'!$L$53=0,"",'Timeliness Quarterly'!$L$53)) -> 
B62: ='Timeliness Quarterly'!$G$45 -> 1/1/16 - 3/31/16 | C62: ='Timeliness Quarterly'!$D$53 -> 0.8 | D62: ='Timeliness Quarterly'!$E$53 -> 3 | E62: =IF(IFERROR('Timeliness Quarterly'!G$55,"error")="error","",IF('Timeliness Quarterly'!G$55<'Timeliness Quarterly'!$D$53,'Timeliness Quarterly'!G$55,"")) ->  | F62: =IF(IFERROR('Timeliness Quarterly'!$M$53,"error")="error","",IF('Timeliness Quarterly'!$M$53=0,"",'Timeliness Quarterly'!$M$53)) ->  | G62: =IF(IFERROR('Timeliness Quarterly'!$N$53,"error")="error","",IF('Timeliness Quarterly'!$N$53=0,"",'Timeliness Quarterly'!$N$53)) -> 
B63: ='Timeliness Quarterly'!$H$45 -> 4/1/16 - 6/30/16 | C63: ='Timeliness Quarterly'!$D$53 -> 0.8 | D63: ='Timeliness Quarterly'!$E$53 -> 3 | E63: =IF(IFERROR('Timeliness Quarterly'!H$55,"error")="error","",IF('Timeliness Quarterly'!H$55<'Timeliness Quarterly'!$D$53,'Timeliness Quarterly'!H$55,"")) ->  | F63: =IF(IFERROR('Timeliness Quarterly'!$O$53,"error")="error","",IF('Timeliness Quarterly'!$O$53=0,"",'Timeliness Quarterly'!$O$53)) ->  | G63: =IF(IFERROR('Timeliness Quarterly'!$P$53,"error")="error","",IF('Timeliness Quarterly'!$P$53=0,"",'Timeliness Quarterly'!$P$53)) -> 
B64: ='Timeliness Quarterly'!$I$45 -> 7/1/16 - 9/30/16 | C64: ='Timeliness Quarterly'!$D$53 -> 0.8 | D64: ='Timeliness Quarterly'!$E$53 -> 3 | E64: =IF(IFERROR('Timeliness Quarterly'!I$55,"error")="error","",IF('Timeliness Quarterly'!I$55<'Timeliness Quarterly'!$D$53,'Timeliness Quarterly'!I$55,"")) ->  | F64: =IF(IFERROR('Timeliness Quarterly'!$Q$53,"error")="error","",IF('Timeliness Quarterly'!$Q$53=0,"",'Timeliness Quarterly'!$Q$53)) ->  | G64: =IF(IFERROR('Timeliness Quarterly'!$R$53,"error")="error","",IF('Timeliness Quarterly'!$R$53=0,"",'Timeliness Quarterly'!$R$53)) -> 
A65: Criminal Traffic | B65: ='Timeliness Quarterly'!$F$45 -> 10/1/15 - 12/31/15 | C65: ='Timeliness Quarterly'!$D$56 -> 0.8 | D65: ='Timeliness Quarterly'!$E$56 -> 3 | E65: =IF(IFERROR('Timeliness Quarterly'!F$58,"error")="error","",IF('Timeliness Quarterly'!F$58<'Timeliness Quarterly'!$D$56,'Timeliness Quarterly'!F$58,"")) ->  | F65: =IF(IFERROR('Timeliness Quarterly'!$K$56,"error")="error","",IF('Timeliness Quarterly'!$K$56=0,"",'Timeliness Quarterly'!$K$56)) ->  | G65: =IF(IFERROR('Timeliness Quarterly'!$L$56,"error")="error","",IF('Timeliness Quarterly'!$L$56=0,"",'Timeliness Quarterly'!$L$56)) -> 
B66: ='Timeliness Quarterly'!$G$45 -> 1/1/16 - 3/31/16 | C66: ='Timeliness Quarterly'!$D$56 -> 0.8 | D66: ='Timeliness Quarterly'!$E$56 -> 3 | E66: =IF(IFERROR('Timeliness Quarterly'!G$58,"error")="error","",IF('Timeliness Quarterly'!G$58<'Timeliness Quarterly'!$D$56,'Timeliness Quarterly'!G$58,"")) ->  | F66: =IF(IFERROR('Timeliness Quarterly'!$M$56,"error")="error","",IF('Timeliness Quarterly'!$M$56=0,"",'Timeliness Quarterly'!$M$56)) ->  | G66: =IF(IFERROR('Timeliness Quarterly'!$N$56,"error")="error","",IF('Timeliness Quarterly'!$N$56=0,"",'Timeliness Quarterly'!$N$56)) -> 
B67: ='Timeliness Quarterly'!$H$45 -> 4/1/16 - 6/30/16 | C67: ='Timeliness Quarterly'!$D$56 -> 0.8 | D67: ='Timeliness Quarterly'!$E$56 -> 3 | E67: =IF(IFERROR('Timeliness Quarterly'!H$58,"error")="error","",IF('Timeliness Quarterly'!H$58<'Timeliness Quarterly'!$D$56,'Timeliness Quarterly'!H$58,"")) ->  | F67: =IF(IFERROR('Timeliness Quarterly'!$O$56,"error")="error","",IF('Timeliness Quarterly'!$O$56=0,"",'Timeliness Quarterly'!$O$56)) ->  | G67: =IF(IFERROR('Timeliness Quarterly'!$P$56,"error")="error","",IF('Timeliness Quarterly'!$P$56=0,"",'Timeliness Quarterly'!$P$56)) -> 
B68: ='Timeliness Quarterly'!$I$45 -> 7/1/16 - 9/30/16 | C68: ='Timeliness Quarterly'!$D$56 -> 0.8 | D68: ='Timeliness Quarterly'!$E$56 -> 3 | E68: =IF(IFERROR('Timeliness Quarterly'!I$58,"error")="error","",IF('Timeliness Quarterly'!I$58<'Timeliness Quarterly'!$D$56,'Timeliness Quarterly'!I$58,"")) ->  | F68: =IF(IFERROR('Timeliness Quarterly'!$Q$56,"error")="error","",IF('Timeliness Quarterly'!$Q$56=0,"",'Timeliness Quarterly'!$Q$56)) ->  | G68: =IF(IFERROR('Timeliness Quarterly'!$R$56,"error")="error","",IF('Timeliness Quarterly'!$R$56=0,"",'Timeliness Quarterly'!$R$56)) -> 
A69: Circuit Civil | B69: ='Timeliness Quarterly'!$F$45 -> 10/1/15 - 12/31/15 | C69: ='Timeliness Quarterly'!$D$60 -> 0.8 | D69: ='Timeliness Quarterly'!$E$60 -> 3 | E69: =IF(IFERROR('Timeliness Quarterly'!F$62,"error")="error","",IF('Timeliness Quarterly'!F$62<'Timeliness Quarterly'!$D$60,'Timeliness Quarterly'!F$62,"")) ->  | F69: =IF(IFERROR('Timeliness Quarterly'!$K$60,"error")="error","",IF('Timeliness Quarterly'!$K$60=0,"",'Timeliness Quarterly'!$K$60)) ->  | G69: =IF(IFERROR('Timeliness Quarterly'!$L$60,"error")="error","",IF('Timeliness Quarterly'!$L$60=0,"",'Timeliness Quarterly'!$L$60)) -> 
B70: ='Timeliness Quarterly'!$G$45 -> 1/1/16 - 3/31/16 | C70: ='Timeliness Quarterly'!$D$60 -> 0.8 | D70: ='Timeliness Quarterly'!$E$60 -> 3 | E70: =IF(IFERROR('Timeliness Quarterly'!G$62,"error")="error","",IF('Timeliness Quarterly'!G$62<'Timeliness Quarterly'!$D$60,'Timeliness Quarterly'!G$62,"")) ->  | F70: =IF(IFERROR('Timeliness Quarterly'!$M$60,"error")="error","",IF('Timeliness Quarterly'!$M$60=0,"",'Timeliness Quarterly'!$M$60)) ->  | G70: =IF(IFERROR('Timeliness Quarterly'!$N$60,"error")="error","",IF('Timeliness Quarterly'!$N$60=0,"",'Timeliness Quarterly'!$N$60)) -> 
B71: ='Timeliness Quarterly'!$H$45 -> 4/1/16 - 6/30/16 | C71: ='Timeliness Quarterly'!$D$60 -> 0.8 | D71: ='Timeliness Quarterly'!$E$60 -> 3 | E71: =IF(IFERROR('Timeliness Quarterly'!H$62,"error")="error","",IF('Timeliness Quarterly'!H$62<'Timeliness Quarterly'!$D$60,'Timeliness Quarterly'!H$62,"")) ->  | F71: =IF(IFERROR('Timeliness Quarterly'!$O$60,"error")="error","",IF('Timeliness Quarterly'!$O$60=0,"",'Timeliness Quarterly'!$O$60)) ->  | G71: =IF(IFERROR('Timeliness Quarterly'!$P$60,"error")="error","",IF('Timeliness Quarterly'!$P$60=0,"",'Timeliness Quarterly'!$P$60)) -> 
B72: ='Timeliness Quarterly'!$I$45 -> 7/1/16 - 9/30/16 | C72: ='Timeliness Quarterly'!$D$60 -> 0.8 | D72: ='Timeliness Quarterly'!$E$60 -> 3 | E72: =IF(IFERROR('Timeliness Quarterly'!I$62,"error")="error","",IF('Timeliness Quarterly'!I$62<'Timeliness Quarterly'!$D$60,'Timeliness Quarterly'!I$62,"")) ->  | F72: =IF(IFERROR('Timeliness Quarterly'!$Q$60,"error")="error","",IF('Timeliness Quarterly'!$Q$60=0,"",'Timeliness Quarterly'!$Q$60)) ->  | G72: =IF(IFERROR('Timeliness Quarterly'!$R$60,"error")="error","",IF('Timeliness Quarterly'!$R$60=0,"",'Timeliness Quarterly'!$R$60)) -> 
A73: County Civil | B73: ='Timeliness Quarterly'!$F$45 -> 10/1/15 - 12/31/15 | C73: ='Timeliness Quarterly'!$D$63 -> 0.8 | D73: ='Timeliness Quarterly'!$E$63 -> 3 | E73: =IF(IFERROR('Timeliness Quarterly'!F$65,"error")="error","",IF('Timeliness Quarterly'!F$65<'Timeliness Quarterly'!$D$63,'Timeliness Quarterly'!F$65,"")) ->  | F73: =IF(IFERROR('Timeliness Quarterly'!$K$63,"error")="error","",IF('Timeliness Quarterly'!$K$63=0,"",'Timeliness Quarterly'!$K$63)) ->  | G73: =IF(IFERROR('Timeliness Quarterly'!$L$63,"error")="error","",IF('Timeliness Quarterly'!$L$63=0,"",'Timeliness Quarterly'!$L$63)) -> 
B74: ='Timeliness Quarterly'!$G$45 -> 1/1/16 - 3/31/16 | C74: ='Timeliness Quarterly'!$D$63 -> 0.8 | D74: ='Timeliness Quarterly'!$E$63 -> 3 | E74: =IF(IFERROR('Timeliness Quarterly'!G$65,"error")="error","",IF('Timeliness Quarterly'!G$65<'Timeliness Quarterly'!$D$63,'Timeliness Quarterly'!G$65,"")) ->  | F74: =IF(IFERROR('Timeliness Quarterly'!$M$63,"error")="error","",IF('Timeliness Quarterly'!$M$63=0,"",'Timeliness Quarterly'!$M$63)) ->  | G74: =IF(IFERROR('Timeliness Quarterly'!$N$63,"error")="error","",IF('Timeliness Quarterly'!$N$63=0,"",'Timeliness Quarterly'!$N$63)) -> 
B75: ='Timeliness Quarterly'!$H$45 -> 4/1/16 - 6/30/16 | C75: ='Timeliness Quarterly'!$D$63 -> 0.8 | D75: ='Timeliness Quarterly'!$E$63 -> 3 | E75: =IF(IFERROR('Timeliness Quarterly'!H$65,"error")="error","",IF('Timeliness Quarterly'!H$65<'Timeliness Quarterly'!$D$63,'Timeliness Quarterly'!H$65,"")) ->  | F75: =IF(IFERROR('Timeliness Quarterly'!$O$63,"error")="error","",IF('Timeliness Quarterly'!$O$63=0,"",'Timeliness Quarterly'!$O$63)) ->  | G75: =IF(IFERROR('Timeliness Quarterly'!$P$63,"error")="error","",IF('Timeliness Quarterly'!$P$63=0,"",'Timeliness Quarterly'!$P$63)) -> 
B76: ='Timeliness Quarterly'!$I$45 -> 7/1/16 - 9/30/16 | C76: ='Timeliness Quarterly'!$D$63 -> 0.8 | D76: ='Timeliness Quarterly'!$E$63 -> 3 | E76: =IF(IFERROR('Timeliness Quarterly'!I$65,"error")="error","",IF('Timeliness Quarterly'!I$65<'Timeliness Quarterly'!$D$63,'Timeliness Quarterly'!I$65,"")) ->  | F76: =IF(IFERROR('Timeliness Quarterly'!$Q$63,"error")="error","",IF('Timeliness Quarterly'!$Q$63=0,"",'Timeliness Quarterly'!$Q$63)) ->  | G76: =IF(IFERROR('Timeliness Quarterly'!$R$63,"error")="error","",IF('Timeliness Quarterly'!$R$63=0,"",'Timeliness Quarterly'!$R$63)) -> 
A77: Civil Traffic | B77: ='Timeliness Quarterly'!$F$45 -> 10/1/15 - 12/31/15 | C77: ='Timeliness Quarterly'!$D$66 -> 0.8 | D77: ='Timeliness Quarterly'!$E$66 -> 4 | E77: =IF(IFERROR('Timeliness Quarterly'!F$68,"error")="error","",IF('Timeliness Quarterly'!F$68<'Timeliness Quarterly'!$D$66,'Timeliness Quarterly'!F$68,"")) ->  | F77: =IF(IFERROR('Timeliness Quarterly'!$K$66,"error")="error","",IF('Timeliness Quarterly'!$K$66=0,"",'Timeliness Quarterly'!$K$66)) ->  | G77: =IF(IFERROR('Timeliness Quarterly'!$L$66,"error")="error","",IF('Timeliness Quarterly'!$L$66=0,"",'Timeliness Quarterly'!$L$66)) -> 
B78: ='Timeliness Quarterly'!$G$45 -> 1/1/16 - 3/31/16 | C78: ='Timeliness Quarterly'!$D$66 -> 0.8 | D78: ='Timeliness Quarterly'!$E$66 -> 4 | E78: =IF(IFERROR('Timeliness Quarterly'!G$68,"error")="error","",IF('Timeliness Quarterly'!G$68<'Timeliness Quarterly'!$D$66,'Timeliness Quarterly'!G$68,"")) ->  | F78: =IF(IFERROR('Timeliness Quarterly'!$M$66,"error")="error","",IF('Timeliness Quarterly'!$M$66=0,"",'Timeliness Quarterly'!$M$66)) ->  | G78: =IF(IFERROR('Timeliness Quarterly'!$N$66,"error")="error","",IF('Timeliness Quarterly'!$N$66=0,"",'Timeliness Quarterly'!$N$66)) -> 
B79: ='Timeliness Quarterly'!$H$45 -> 4/1/16 - 6/30/16 | C79: ='Timeliness Quarterly'!$D$66 -> 0.8 | D79: ='Timeliness Quarterly'!$E$66 -> 4 | E79: =IF(IFERROR('Timeliness Quarterly'!H$68,"error")="error","",IF('Timeliness Quarterly'!H$68<'Timeliness Quarterly'!$D$66,'Timeliness Quarterly'!H$68,"")) ->  | F79: =IF(IFERROR('Timeliness Quarterly'!$O$66,"error")="error","",IF('Timeliness Quarterly'!$O$66=0,"",'Timeliness Quarterly'!$O$66)) ->  | G79: =IF(IFERROR('Timeliness Quarterly'!$P$66,"error")="error","",IF('Timeliness Quarterly'!$P$66=0,"",'Timeliness Quarterly'!$P$66)) -> 
B80: ='Timeliness Quarterly'!$I$45 -> 7/1/16 - 9/30/16 | C80: ='Timeliness Quarterly'!$D$66 -> 0.8 | D80: ='Timeliness Quarterly'!$E$66 -> 4 | E80: =IF(IFERROR('Timeliness Quarterly'!I$68,"error")="error","",IF('Timeliness Quarterly'!I$68<'Timeliness Quarterly'!$D$66,'Timeliness Quarterly'!I$68,"")) ->  | F80: =IF(IFERROR('Timeliness Quarterly'!$Q$66,"error")="error","",IF('Timeliness Quarterly'!$Q$66=0,"",'Timeliness Quarterly'!$Q$66)) ->  | G80: =IF(IFERROR('Timeliness Quarterly'!$R$66,"error")="error","",IF('Timeliness Quarterly'!$R$66=0,"",'Timeliness Quarterly'!$R$66)) -> 
A81: Probate | B81: ='Timeliness Quarterly'!$F$45 -> 10/1/15 - 12/31/15 | C81: ='Timeliness Quarterly'!$D$69 -> 0.8 | D81: ='Timeliness Quarterly'!$E$69 -> 3 | E81: =IF(IFERROR('Timeliness Quarterly'!F$71,"error")="error","",IF('Timeliness Quarterly'!F$71<'Timeliness Quarterly'!$D$69,'Timeliness Quarterly'!F$71,"")) ->  | F81: =IF(IFERROR('Timeliness Quarterly'!$K$69,"error")="error","",IF('Timeliness Quarterly'!$K$69=0,"",'Timeliness Quarterly'!$K$69)) ->  | G81: =IF(IFERROR('Timeliness Quarterly'!$L$69,"error")="error","",IF('Timeliness Quarterly'!$L$69=0,"",'Timeliness Quarterly'!$L$69)) -> 
B82: ='Timeliness Quarterly'!$G$45 -> 1/1/16 - 3/31/16 | C82: ='Timeliness Quarterly'!$D$69 -> 0.8 | D82: ='Timeliness Quarterly'!$E$69 -> 3 | E82: =IF(IFERROR('Timeliness Quarterly'!G$71,"error")="error","",IF('Timeliness Quarterly'!G$71<'Timeliness Quarterly'!$D$69,'Timeliness Quarterly'!G$71,"")) ->  | F82: =IF(IFERROR('Timeliness Quarterly'!$M$69,"error")="error","",IF('Timeliness Quarterly'!$M$69=0,"",'Timeliness Quarterly'!$M$69)) ->  | G82: =IF(IFERROR('Timeliness Quarterly'!$N$69,"error")="error","",IF('Timeliness Quarterly'!$N$69=0,"",'Timeliness Quarterly'!$N$69)) -> 
B83: ='Timeliness Quarterly'!$H$45 -> 4/1/16 - 6/30/16 | C83: ='Timeliness Quarterly'!$D$69 -> 0.8 | D83: ='Timeliness Quarterly'!$E$69 -> 3 | E83: =IF(IFERROR('Timeliness Quarterly'!H$71,"error")="error","",IF('Timeliness Quarterly'!H$71<'Timeliness Quarterly'!$D$69,'Timeliness Quarterly'!H$71,"")) ->  | F83: =IF(IFERROR('Timeliness Quarterly'!$O$69,"error")="error","",IF('Timeliness Quarterly'!$O$69=0,"",'Timeliness Quarterly'!$O$69)) ->  | G83: =IF(IFERROR('Timeliness Quarterly'!$P$69,"error")="error","",IF('Timeliness Quarterly'!$P$69=0,"",'Timeliness Quarterly'!$P$69)) -> 
B84: ='Timeliness Quarterly'!$I$45 -> 7/1/16 - 9/30/16 | C84: ='Timeliness Quarterly'!$D$69 -> 0.8 | D84: ='Timeliness Quarterly'!$E$69 -> 3 | E84: =IF(IFERROR('Timeliness Quarterly'!I$71,"error")="error","",IF('Timeliness Quarterly'!I$71<'Timeliness Quarterly'!$D$69,'Timeliness Quarterly'!I$71,"")) ->  | F84: =IF(IFERROR('Timeliness Quarterly'!$Q$69,"error")="error","",IF('Timeliness Quarterly'!$Q$69=0,"",'Timeliness Quarterly'!$Q$69)) ->  | G84: =IF(IFERROR('Timeliness Quarterly'!$R$69,"error")="error","",IF('Timeliness Quarterly'!$R$69=0,"",'Timeliness Quarterly'!$R$69)) -> 
A85: Family | B85: ='Timeliness Quarterly'!$F$45 -> 10/1/15 - 12/31/15 | C85: ='Timeliness Quarterly'!$D$72 -> 0.8 | D85: ='Timeliness Quarterly'!$E$72 -> 3 | E85: =IF(IFERROR('Timeliness Quarterly'!F$74,"error")="error","",IF('Timeliness Quarterly'!F$74<'Timeliness Quarterly'!$D$72,'Timeliness Quarterly'!F$74,"")) ->  | F85: =IF(IFERROR('Timeliness Quarterly'!$K$72,"error")="error","",IF('Timeliness Quarterly'!$K$72=0,"",'Timeliness Quarterly'!$K$72)) ->  | G85: =IF(IFERROR('Timeliness Quarterly'!$L$72,"error")="error","",IF('Timeliness Quarterly'!$L$72=0,"",'Timeliness Quarterly'!$L$72)) -> 
B86: ='Timeliness Quarterly'!$G$45 -> 1/1/16 - 3/31/16 | C86: ='Timeliness Quarterly'!$D$72 -> 0.8 | D86: ='Timeliness Quarterly'!$E$72 -> 3 | E86: =IF(IFERROR('Timeliness Quarterly'!G$74,"error")="error","",IF('Timeliness Quarterly'!G$74<'Timeliness Quarterly'!$D$72,'Timeliness Quarterly'!G$74,"")) ->  | F86: =IF(IFERROR('Timeliness Quarterly'!$M$72,"error")="error","",IF('Timeliness Quarterly'!$M$72=0,"",'Timeliness Quarterly'!$M$72)) ->  | G86: =IF(IFERROR('Timeliness Quarterly'!$N$72,"error")="error","",IF('Timeliness Quarterly'!$N$72=0,"",'Timeliness Quarterly'!$N$72)) -> 
B87: ='Timeliness Quarterly'!$H$45 -> 4/1/16 - 6/30/16 | C87: ='Timeliness Quarterly'!$D$72 -> 0.8 | D87: ='Timeliness Quarterly'!$E$72 -> 3 | E87: =IF(IFERROR('Timeliness Quarterly'!H$74,"error")="error","",IF('Timeliness Quarterly'!H$74<'Timeliness Quarterly'!$D$72,'Timeliness Quarterly'!H$74,"")) ->  | F87: =IF(IFERROR('Timeliness Quarterly'!$O$72,"error")="error","",IF('Timeliness Quarterly'!$O$72=0,"",'Timeliness Quarterly'!$O$72)) ->  | G87: =IF(IFERROR('Timeliness Quarterly'!$P$72,"error")="error","",IF('Timeliness Quarterly'!$P$72=0,"",'Timeliness Quarterly'!$P$72)) -> 
B88: ='Timeliness Quarterly'!$I$45 -> 7/1/16 - 9/30/16 | C88: ='Timeliness Quarterly'!$D$72 -> 0.8 | D88: ='Timeliness Quarterly'!$E$72 -> 3 | E88: =IF(IFERROR('Timeliness Quarterly'!I$74,"error")="error","",IF('Timeliness Quarterly'!I$74<'Timeliness Quarterly'!$D$72,'Timeliness Quarterly'!I$74,"")) ->  | F88: =IF(IFERROR('Timeliness Quarterly'!$Q$72,"error")="error","",IF('Timeliness Quarterly'!$Q$72=0,"",'Timeliness Quarterly'!$Q$72)) ->  | G88: =IF(IFERROR('Timeliness Quarterly'!$R$72,"error")="error","",IF('Timeliness Quarterly'!$R$72=0,"",'Timeliness Quarterly'!$R$72)) -> 
A89: Juvenile Dependency | B89: ='Timeliness Quarterly'!$F$45 -> 10/1/15 - 12/31/15 | C89: ='Timeliness Quarterly'!$D$75 -> 0.8 | D89: ='Timeliness Quarterly'!$E$75 -> 3 | E89: =IF(IFERROR('Timeliness Quarterly'!F$77,"error")="error","",IF('Timeliness Quarterly'!F$77<'Timeliness Quarterly'!$D$75,'Timeliness Quarterly'!F$77,"")) ->  | F89: =IF(IFERROR('Timeliness Quarterly'!$K$75,"error")="error","",IF('Timeliness Quarterly'!$K$75=0,"",'Timeliness Quarterly'!$K$75)) ->  | G89: =IF(IFERROR('Timeliness Quarterly'!$L$75,"error")="error","",IF('Timeliness Quarterly'!$L$75=0,"",'Timeliness Quarterly'!$L$75)) -> 
B90: ='Timeliness Quarterly'!$G$45 -> 1/1/16 - 3/31/16 | C90: ='Timeliness Quarterly'!$D$75 -> 0.8 | D90: ='Timeliness Quarterly'!$E$75 -> 3 | E90: =IF(IFERROR('Timeliness Quarterly'!G$77,"error")="error","",IF('Timeliness Quarterly'!G$77<'Timeliness Quarterly'!$D$75,'Timeliness Quarterly'!G$77,"")) ->  | F90: =IF(IFERROR('Timeliness Quarterly'!$M$75,"error")="error","",IF('Timeliness Quarterly'!$M$75=0,"",'Timeliness Quarterly'!$M$75)) ->  | G90: =IF(IFERROR('Timeliness Quarterly'!$N$75,"error")="error","",IF('Timeliness Quarterly'!$N$75=0,"",'Timeliness Quarterly'!$N$75)) -> 
B91: ='Timeliness Quarterly'!$H$45 -> 4/1/16 - 6/30/16 | C91: ='Timeliness Quarterly'!$D$75 -> 0.8 | D91: ='Timeliness Quarterly'!$E$75 -> 3 | E91: =IF(IFERROR('Timeliness Quarterly'!H$77,"error")="error","",IF('Timeliness Quarterly'!H$77<'Timeliness Quarterly'!$D$75,'Timeliness Quarterly'!H$77,"")) ->  | F91: =IF(IFERROR('Timeliness Quarterly'!$O$75,"error")="error","",IF('Timeliness Quarterly'!$O$75=0,"",'Timeliness Quarterly'!$O$75)) ->  | G91: =IF(IFERROR('Timeliness Quarterly'!$P$75,"error")="error","",IF('Timeliness Quarterly'!$P$75=0,"",'Timeliness Quarterly'!$P$75)) -> 
B92: ='Timeliness Quarterly'!$I$45 -> 7/1/16 - 9/30/16 | C92: ='Timeliness Quarterly'!$D$75 -> 0.8 | D92: ='Timeliness Quarterly'!$E$75 -> 3 | E92: =IF(IFERROR('Timeliness Quarterly'!I$77,"error")="error","",IF('Timeliness Quarterly'!I$77<'Timeliness Quarterly'!$D$75,'Timeliness Quarterly'!I$77,"")) ->  | F92: =IF(IFERROR('Timeliness Quarterly'!$Q$75,"error")="error","",IF('Timeliness Quarterly'!$Q$75=0,"",'Timeliness Quarterly'!$Q$75)) ->  | G92: =IF(IFERROR('Timeliness Quarterly'!$R$75,"error")="error","",IF('Timeliness Quarterly'!$R$75=0,"",'Timeliness Quarterly'!$R$75)) -> 

Sheet DownloadBudgetData (2) Operatio (hidden)
A1: FiscalYear | B1: County | C1: Outputs_NewCases_CrimCir | D1: Outputs_NewCases_CrimCounty | E1: Outputs_NewCases_CrimJuvDel | F1: Outputs_NewCases_CrimTraf | G1: Outputs_NewCases_CivCir | H1: Outputs_NewCases_CivCounty | I1: Outputs_NewCases_CivProbate | J1: Outputs_NewCases_CivFamily | K1: Outputs_NewCases_CivJuvDep | L1: Outputs_NewCases_CivTraf | M1: Outputs_Reopens_CrimCir | N1: Outputs_Reopens_CrimCounty | O1: Outputs_Reopens_CrimJuvDel | P1: Outputs_Reopens_CrimTraf | Q1: Outputs_Reopens_CivCir | R1: Outputs_Reopens_CivCounty | S1: Outputs_Reopens_CivProbate | T1: Outputs_Reopens_CivFamily | U1: Outputs_Reopens_CivJuvDep | V1: Outputs_Reopens_CivTraf | W1: Outputs_NoticesOfAppeal_CrimCir | X1: Outputs_NoticesOfAppeal_CrimCounty | Y1: Outputs_NoticesOfAppeal_CrimJuvDel | Z1: Outputs_NoticesOfAppeal_CrimTraf | AA1: Outputs_NoticesOfAppeal_CivCir | AB1: Outputs_NoticesOfAppeal_CivCounty | AC1: Outputs_NoticesOfAppeal_CivProbate | AD1: Outputs_NoticesOfAppeal_CivFamily | AE1: Outputs_NoticesOfAppeal_CivJuvDep | AF1: Outputs_NoticesOfAppeal_CivTraf | AG1: Outputs_FinReceipts
A2: 2015-2016 | B2: Alachua | C2: 4550 | D2: 5900 | E2: 1220 | F2: 4050 | G2: 1750 | H2: 4800 | I2: 2700 | J2: 2800 | K2: 160 | L2: 50000 | M2: 1800 | N2: 600 | O2: 800 | P2: 700 | Q2: 1300 | R2: 2200 | S2: 1450 | T2: 4800 | U2: 250 | V2: 0 | W2: 200 | X2: 10 | Y2: 10 | Z2: 15 | AA2: 30 | AB2: 6 | AC2: 5 | AD2: 0 | AE2: 0 | AF2: 0 | AG2: 150000
A3: 2015-2016 | B3: Baker | C3: 571 | D3: 741 | E3: 121 | F3: 479 | G3: 153 | H3: 266 | I3: 193 | J3: 418 | K3: 64 | L3: 4038 | M3: 186 | N3: 234 | O3: 39 | P3: 172 | Q3: 6 | R3: 0 | S3: 6 | T3: 214 | U3: 0 | V3: 0 | W3: 16 | X3: 1 | Y3: 2 | Z3: 0 | AA3: 4 | AB3: 0 | AC3: 1 | AD3: 1 | AE3: 1 | AF3: 0 | AG3: 33140
A4: 2015-2016 | B4: Bay | C4: 5300 | D4: 4200 | E4: 1035 | F4: 2100 | G4: 1460 | H4: 3081 | I4: 1479 | J4: 2787 | K4: 315 | L4: 32165 | M4: 2562 | N4: 1200 | O4: 700 | P4: 500 | Q4: 1000 | R4: 840 | S4: 40 | T4: 2400 | U4: 1600 | V4: 0 | W4: 185 | X4: 10 | Y4: 5 | Z4: 2 | AA4: 30 | AB4: 6 | AC4: 4 | AD4: 10 | AE4: 12 | AF4: 1 | AG4: 75794
A5: 2015-2016 | B5: Bradford | C5: 700 | D5: 625 | E5: 130 | F5: 675 | G5: 250 | H5: 380 | I5: 125 | J5: 375 | K5: 16 | L5: 8800 | M5: 125 | N5: 130 | O5: 15 | P5: 85 | Q5: 60 | R5: 60 | S5: 10 | T5: 300 | U5: 0 | V5: 0 | W5: 5 | X5: 1 | Y5: 0 | Z5: 0 | AA5: 12 | AB5: 1 | AC5: 0 | AD5: 0 | AE5: 0 | AF5: 0 | AG5: 15000
A6: 2015-2016 | B6: Brevard | C6: 9200 | D6: 10000 | E6: 1800 | F6: 7500 | G6: 5600 | H6: 7000 | I6: 5000 | J6: 7200 | K6: 350 | L6: 55000 | M6: 8000 | N6: 2100 | O6: 2600 | P6: 2100 | Q6: 6700 | R6: 3600 | S6: 2000 | T6: 8700 | U6: 500 | V6: 0 | W6: 500 | X6: 25 | Y6: 3 | Z6: 30 | AA6: 100 | AB6: 20 | AC6: 10 | AD6: 35 | AE6: 25 | AF6: 15 | AG6: 453037
A7: 2015-2016 | B7: Broward | C7: 16650 | D7: 23890 | E7: 4190 | F7: 28460 | G7: 22920 | H7: 70610 | I7: 11030 | J7: 24740 | K7: 1070 | L7: 314510 | M7: 14640 | N7: 2190 | O7: 1940 | P7: 1380 | Q7: 48680 | R7: 23930 | S7: 450 | T7: 26810 | U7: 5210 | V7: 0 | W7: 910 | X7: 80 | Y7: 60 | Z7: 10 | AA7: 770 | AB7: 270 | AC7: 30 | AD7: 180 | AE7: 40 | AF7: 10 | AG7: 844380
A8: 2015-2016 | B8: Calhoun | C8: 210 | D8: 150 | E8: 30 | F8: 125 | G8: 75 | H8: 120 | I8: 55 | J8: 225 | K8: 10 | L8: 1600 | M8: 180 | N8: 25 | O8: 8 | P8: 24 | Q8: 10 | R8: 10 | S8: 2 | T8: 100 | U8: 35 | V8: 0 | W8: 5 | X8: 0 | Y8: 0 | Z8: 0 | AA8: 0 | AB8: 0 | AC8: 0 | AD8: 0 | AE8: 0 | AF8: 0 | AG8: 4700
A9: 2015-2016 | B9: Charlotte | C9: 2400 | D9: 2500 | E9: 650 | F9: 2500 | G9: 1800 | H9: 1900 | I9: 2400 | J9: 2150 | K9: 125 | L9: 15500 | M9: 1015 | N9: 450 | O9: 300 | P9: 500 | Q9: 1075 | R9: 400 | S9: 475 | T9: 580 | U9: 30 | V9: 0 | W9: 60 | X9: 8 | Y9: 1 | Z9: 1 | AA9: 50 | AB9: 3 | AC9: 3 | AD9: 0 | AE9: 3 | AF9: 3 | AG9: 53000
A10: 2015-2016 | B10: Citrus | C10: 1200 | D10: 1800 | E10: 300 | F10: 900 | G10: 1150 | H10: 1600 | I10: 1585 | J10: 1800 | K10: 220 | L10: 5500 | M10: 2500 | N10: 900 | O10: 260 | P10: 600 | Q10: 1080 | R10: 700 | S10: 750 | T10: 1800 | U10: 1550 | V10: 0 | W10: 143 | X10: 2 | Y10: 2 | Z10: 1 | AA10: 24 | AB10: 4 | AC10: 3 | AD10: 4 | AE10: 12 | AF10: 2 | AG10: 130000
A11: 2015-2016 | B11: Clay | C11: 1750 | D11: 2400 | E11: 670 | F11: 2100 | G11: 1320 | H11: 2500 | I11: 985 | J11: 2460 | K11: 265 | L11: 22500 | M11: 930 | N11: 225 | O11: 230 | P11: 170 | Q11: 1050 | R11: 570 | S11: 60 | T11: 2210 | U11: 1200 | V11: 0 | W11: 40 | X11: 6 | Y11: 6 | Z11: 3 | AA11: 46 | AB11: 7 | AC11: 1 | AD11: 15 | AE11: 2 | AF11: 1 | AG11: 54363
A12: 2015-2016 | B12: Collier | C12: 2400 | D12: 3900 | E12: 750 | F12: 4900 | G12: 2400 | H12: 3900 | I12: 3700 | J12: 3100 | K12: 175 | L12: 34000 | M12: 1800 | N12: 1240 | O12: 235 | P12: 1200 | Q12: 3000 | R12: 1400 | S12: 1150 | T12: 3100 | U12: 700 | V12: 0 | W12: 100 | X12: 2 | Y12: 1 | Z12: 2 | AA12: 85 | AB12: 10 | AC12: 1 | AD12: 1 | AE12: 1 | AF12: 1 | AG12: 204000
A13: 2015-2016 | B13: Columbia | C13: 1100 | D13: 1400 | E13: 300 | F13: 1100 | G13: 550 | H13: 1110 | I13: 420 | J13: 1200 | K13: 175 | L13: 12000 | M13: 1000 | N13: 350 | O13: 160 | P13: 450 | Q13: 130 | R13: 230 | S13: 110 | T13: 1050 | U13: 100 | V13: 0 | W13: 60 | X13: 1 | Y13: 0 | Z13: 1 | AA13: 35 | AB13: 2 | AC13: 1 | AD13: 1 | AE13: 1 | AF13: 1 | AG13: 23000
A14: 2015-2016 | B14: Dade | C14: 30362 | D14: 45038 | E14: 4889 | F14: 76503 | G14: 30460 | H14: 78035 | I14: 13663 | J14: 30782 | K14: 4513 | L14: 722200 | M14: 26629 | N14: 14793 | O14: 5150 | P14: 48378 | Q14: 56040 | R14: 24587 | S14: 46801 | T14: 25431 | U14: 11770 | V14: 0 | W14: 1007 | X14: 23 | Y14: 70 | Z14: 28 | AA14: 1035 | AB14: 357 | AC14: 35 | AD14: 140 | AE14: 75 | AF14: 0 | AG14: 1274168
A15: 2015-2016 | B15: Desoto | C15: 600 | D15: 750 | E15: 300 | F15: 500 | G15: 225 | H15: 350 | I15: 130 | J15: 400 | K15: 25 | L15: 4000 | M15: 250 | N15: 125 | O15: 100 | P15: 50 | Q15: 45 | R15: 1 | S15: 1 | T15: 80 | U15: 5 | V15: 0 | W15: 20 | X15: 2 | Y15: 1 | Z15: 1 | AA15: 10 | AB15: 1 | AC15: 1 | AD15: 1 | AE15: 1 | AF15: 1 | AG15: 10750
A16: 2015-2016 | B16: Dixie | C16: 260 | D16: 231 | E16: 43 | F16: 185 | G16: 106 | H16: 146 | I16: 91 | J16: 358 | K16: 34 | L16: 2600 | M16: 53 | N16: 40 | O16: 2 | P16: 4 | Q16: 3 | R16: 2 | S16: 3 | T16: 10 | U16: 1 | V16: 0 | W16: 4 | X16: 0 | Y16: 0 | Z16: 0 | AA16: 4 | AB16: 0 | AC16: 0 | AD16: 2 | AE16: 2 | AF16: 0 | AG16: 4334
A17: 2015-2016 | B17: Duval | C17: 11570 | D17: 21514 | E17: 3410 | F17: 19009 | G17: 8295 | H17: 20839 | I17: 6148 | J17: 13672 | K17: 1117 | L17: 109515 | M17: 8185 | N17: 2723 | O17: 1878 | P17: 1957 | Q17: 3782 | R17: 2284 | S17: 567 | T17: 6589 | U17: 427 | V17: 0 | W17: 337 | X17: 2 | Y17: 2 | Z17: 5 | AA17: 206 | AB17: 133 | AC17: 14 | AD17: 66 | AE17: 82 | AF17: 7 | AG17: 278875
A18: 2015-2016 | B18: Escambia | C18: 6048 | D18: 7063 | E18: 1569 | F18: 3612 | G18: 2198 | H18: 4185 | I18: 3425 | J18: 5032 | K18: 300 | L18: 34098 | M18: 6963 | N18: 1391 | O18: 5782 | P18: 503 | Q18: 1905 | R18: 1440 | S18: 2250 | T18: 6584 | U18: 4538 | V18: 0 | W18: 670 | X18: 30 | Y18: 4 | Z18: 5 | AA18: 50 | AB18: 15 | AC18: 4 | AD18: 16 | AE18: 15 | AF18: 5 | AG18: 117250
A19: 2015-2016 | B19: Flagler | C19: 1100 | D19: 1600 | E19: 250 | F19: 1200 | G19: 800 | H19: 1100 | I19: 700 | J19: 1200 | K19: 50 | L19: 9000 | M19: 440 | N19: 300 | O19: 60 | P19: 140 | Q19: 900 | R19: 350 | S19: 160 | T19: 900 | U19: 200 | V19: 0 | W19: 40 | X19: 1 | Y19: 1 | Z19: 1 | AA19: 15 | AB19: 1 | AC19: 1 | AD19: 3 | AE19: 1 | AF19: 1 | AG19: 24000
A20: 2015-2016 | B20: Franklin | C20: 275 | D20: 550 | E20: 40 | F20: 175 | G20: 125 | H20: 90 | I20: 80 | J20: 200 | K20: 8 | L20: 1200 | M20: 200 | N20: 175 | O20: 35 | P20: 100 | Q20: 75 | R20: 1 | S20: 0 | T20: 1 | U20: 0 | V20: 0 | W20: 2 | X20: 2 | Y20: 0 | Z20: 1 | AA20: 4 | AB20: 1 | AC20: 0 | AD20: 1 | AE20: 0 | AF20: 0 | AG20: 4565
A21: 2015-2016 | B21: Gadsden | C21: 587 | D21: 625 | E21: 123 | F21: 1061 | G21: 423 | H21: 474 | I21: 10743 | J21: 554 | K21: 639 | L21: 12 | M21: 506 | N21: 406 | O21: 45 | P21: 0 | Q21: 189 | R21: 14 | S21: 0 | T21: 100 | U21: 191 | V21: 0 | W21: 0 | X21: 0 | Y21: 0 | Z21: 0 | AA21: 0 | AB21: 0 | AC21: 0 | AD21: 0 | AE21: 0 | AF21: 0 | AG21: 20214
A22: 2015-2016 | B22: Gilchrist | C22: 210 | D22: 280 | E22: 55 | F22: 150 | G22: 125 | H22: 145 | I22: 90 | J22: 300 | K22: 15 | L22: 1000 | M22: 85 | N22: 50 | O22: 15 | P22: 85 | Q22: 12 | R22: 2 | S22: 6 | T22: 190 | U22: 1 | V22: 0 | W22: 2 | X22: 0 | Y22: 0 | Z22: 0 | AA22: 1 | AB22: 0 | AC22: 1 | AD22: 2 | AE22: 1 | AF22: 0 | AG22: 3600
A23: 2015-2016 | B23: Glades | C23: 140 | D23: 343 | E23: 23 | F23: 199 | G23: 54 | H23: 79 | I23: 58 | J23: 102 | K23: 4 | L23: 4509 | M23: 48 | N23: 22 | O23: 0 | P23: 32 | Q23: 31 | R23: 4 | S23: 2 | T23: 64 | U23: 5 | V23: 0 | W23: 6 | X23: 0 | Y23: 0 | Z23: 0 | AA23: 2 | AB23: 1 | AC23: 0 | AD23: 0 | AE23: 1 | AF23: 0 | AG23: 6618
A24: 2015-2016 | B24: Gulf | C24: 337 | D24: 288 | E24: 38 | F24: 190 | G24: 133 | H24: 125 | I24: 114 | J24: 185 | K24: 8 | L24: 852 | M24: 161 | N24: 39 | O24: 16 | P24: 71 | Q24: 56 | R24: 0 | S24: 0 | T24: 140 | U24: 0 | V24: 0 | W24: 9 | X24: 0 | Y24: 0 | Z24: 0 | AA24: 11 | AB24: 0 | AC24: 0 | AD24: 0 | AE24: 0 | AF24: 0 | AG24: 4000
A25: 2015-2016 | B25: Hamilton | C25: 170 | D25: 215 | E25: 80 | F25: 230 | G25: 350 | H25: 75 | I25: 60 | J25: 195 | K25: 12 | L25: 2500 | M25: 100 | N25: 20 | O25: 10 | P25: 5 | Q25: 24 | R25: 10 | S25: 10 | T25: 8 | U25: 24 | V25: 0 | W25: 15 | X25: 1 | Y25: 2 | Z25: 1 | AA25: 5 | AB25: 1 | AC25: 2 | AD25: 1 | AE25: 1 | AF25: 1 | AG25: 7500
A26: 2015-2016 | B26: Hardee | C26: 430 | D26: 645 | E26: 149 | F26: 735 | G26: 145 | H26: 230 | I26: 140 | J26: 425 | K26: 20 | L26: 4550 | M26: 220 | N26: 80 | O26: 45 | P26: 40 | Q26: 75 | R26: 60 | S26: 95 | T26: 415 | U26: 125 | V26: 0 | W26: 0 | X26: 0 | Y26: 0 | Z26: 0 | AA26: 0 | AB26: 0 | AC26: 0 | AD26: 0 | AE26: 0 | AF26: 0 | AG26: 11000
A27: 2015-2016 | B27: Hendry | C27: 760 | D27: 1200 | E27: 245 | F27: 1300 | G27: 280 | H27: 380 | I27: 110 | J27: 550 | K27: 36 | L27: 7000 | M27: 120 | N27: 150 | O27: 30 | P27: 15 | Q27: 60 | R27: 15 | S27: 35 | T27: 190 | U27: 50 | V27: 0 | W27: 15 | X27: 1 | Y27: 1 | Z27: 1 | AA27: 5 | AB27: 1 | AC27: 20 | AD27: 75 | AE27: 50 | AF27: 1 | AG27: 15000
A28: 2015-2016 | B28: Hernando | C28: 2100 | D28: 2150 | E28: 700 | F28: 1500 | G28: 1600 | H28: 2800 | I28: 2600 | J28: 2400 | K28: 175 | L28: 26000 | M28: 3800 | N28: 700 | O28: 250 | P28: 300 | Q28: 1600 | R28: 825 | S28: 800 | T28: 1200 | U28: 666 | V28: 0 | W28: 100 | X28: 2 | Y28: 0 | Z28: 0 | AA28: 20 | AB28: 5 | AC28: 0 | AD28: 5 | AE28: 2 | AF28: 2 | AG28: 70350
A29: 2015-2016 | B29: Highlands | C29: 1062 | D29: 1263 | E29: 418 | F29: 972 | G29: 691 | H29: 1300 | I29: 1130 | J29: 1077 | K29: 100 | L29: 9206 | M29: 902 | N29: 1629 | O29: 1255 | P29: 1250 | Q29: 394 | R29: 204 | S29: 211 | T29: 1505 | U29: 270 | V29: 0 | W29: 113 | X29: 1 | Y29: 1 | Z29: 2 | AA29: 18 | AB29: 3 | AC29: 1 | AD29: 1 | AE29: 2 | AF29: 2 | AG29: 25500
A30: 2015-2016 | B30: Hillsborough | C30: 18740 | D30: 24714 | E30: 4735 | F30: 32815 | G30: 10238 | H30: 36073 | I30: 10233 | J30: 17358 | K30: 992 | L30: 187899 | M30: 15613 | N30: 1568 | O30: 2631 | P30: 1276 | Q30: 19198 | R30: 13844 | S30: 5407 | T30: 14447 | U30: 631 | V30: 0 | W30: 998 | X30: 19 | Y30: 34 | Z30: 43 | AA30: 214 | AB30: 26 | AC30: 5 | AD30: 126 | AE30: 39 | AF30: 19 | AG30: 357734
A31: 2015-2016 | B31: Holmes | C31: 475 | D31: 500 | E31: 70 | F31: 250 | G31: 130 | H31: 200 | I31: 100 | J31: 330 | K31: 17 | L31: 3450 | M31: 250 | N31: 70 | O31: 25 | P31: 43 | Q31: 18 | R31: 10 | S31: 5 | T31: 100 | U31: 20 | V31: 0 | W31: 12 | X31: 0 | Y31: 0 | Z31: 0 | AA31: 4 | AB31: 1 | AC31: 0 | AD31: 1 | AE31: 0 | AF31: 0 | AG31: 7500
A32: 2015-2016 | B32: Indian River | C32: 1502 | D32: 2924 | E32: 328 | F32: 1378 | G32: 1073 | H32: 1968 | I32: 1487 | J32: 1994 | K32: 102 | L32: 17317 | M32: 1590 | N32: 218 | O32: 1190 | P32: 100 | Q32: 916 | R32: 526 | S32: 493 | T32: 1755 | U32: 1475 | V32: 0 | W32: 48 | X32: 3 | Y32: 11 | Z32: 2 | AA32: 39 | AB32: 10 | AC32: 2 | AD32: 9 | AE32: 1 | AF32: 0 | AG32: 53603
A33: 2015-2016 | B33: Jackson | C33: 597 | D33: 506 | E33: 130 | F33: 419 | G33: 756 | H33: 640 | I33: 288 | J33: 215 | K33: 137 | L33: 0 | M33: 245 | N33: 42 | O33: 13 | P33: 44 | Q33: 89 | R33: 3 | S33: 183 | T33: 445 | U33: 35 | V33: 0 | W33: 19 | X33: 0 | Y33: 0 | Z33: 0 | AA33: 15 | AB33: 8 | AC33: 0 | AD33: 1 | AE33: 4261 | AF33: 0 | AG33: 13490
A34: 2015-2016 | B34: Jefferson | C34: 190 | D34: 208 | E34: 27 | F34: 294 | G34: 149 | H34: 137 | I34: 73 | J34: 159 | K34: 11 | L34: 6188 | M34: 99 | N34: 7 | O34: 11 | P34: 4 | Q34: 13 | R34: 90 | S34: 2 | T34: 200 | U34: 9 | V34: 0 | W34: 0 | X34: 0 | Y34: 0 | Z34: 0 | AA34: 4 | AB34: 0 | AC34: 0 | AD34: 0 | AE34: 0 | AF34: 0 | AG34: 7727
A35: 2015-2016 | B35: Lafayette | C35: 60 | D35: 102 | E35: 8 | F35: 60 | G35: 52 | H35: 85 | I35: 41 | J35: 125 | K35: 5 | L35: 550 | M35: 65 | N35: 14 | O35: 7 | P35: 10 | Q35: 4 | R35: 15 | S35: 1 | T35: 35 | U35: 1 | V35: 0 | W35: 4 | X35: 1 | Y35: 1 | Z35: 1 | AA35: 1 | AB35: 1 | AC35: 1 | AD35: 2 | AE35: 1 | AF35: 1 | AG35: 1300
A36: 2015-2016 | B36: Lake | C36: 3200 | D36: 3200 | E36: 900 | F36: 4050 | G36: 2400 | H36: 4100 | I36: 2550 | J36: 3650 | K36: 230 | L36: 39000 | M36: 1200 | N36: 760 | O36: 320 | P36: 515 | Q36: 2750 | R36: 1650 | S36: 625 | T36: 3900 | U36: 1100 | V36: 0 | W36: 160 | X36: 3 | Y36: 0 | Z36: 2 | AA36: 60 | AB36: 2 | AC36: 0 | AD36: 10 | AE36: 10 | AF36: 10 | AG36: 341500
A37: 2015-2016 | B37: Lee | C37: 5700 | D37: 15000 | E37: 2250 | F37: 9200 | G37: 5000 | H37: 11000 | I37: 6600 | J37: 8600 | K37: 450 | L37: 88000 | M37: 19000 | N37: 3700 | O37: 615 | P37: 3200 | Q37: 7000 | R37: 4700 | S37: 3500 | T37: 7800 | U37: 2000 | V37: 0 | W37: 225 | X37: 15 | Y37: 5 | Z37: 10 | AA37: 170 | AB37: 25 | AC37: 2 | AD37: 35 | AE37: 10 | AF37: 0 | AG37: 230000
A38: 2015-2016 | B38: Leon | C38: 4046 | D38: 3701 | E38: 848 | F38: 3007 | G38: 3166 | H38: 6007 | I38: 2499 | J38: 4011 | K38: 126 | L38: 36000 | M38: 856 | N38: 312 | O38: 4276 | P38: 303 | Q38: 2046 | R38: 2283 | S38: 1617 | T38: 4797 | U38: 2306 | V38: 0 | W38: 319 | X38: 8 | Y38: 24 | Z38: 5 | AA38: 436 | AB38: 6 | AC38: 1 | AD38: 11 | AE38: 12 | AF38: 3 | AG38: 119000
A39: 2015-2016 | B39: Levy | C39: 675 | D39: 800 | E39: 100 | F39: 600 | G39: 275 | H39: 440 | I39: 245 | J39: 670 | K39: 15 | L39: 3700 | M39: 600 | N39: 215 | O39: 215 | P39: 55 | Q39: 205 | R39: 250 | S39: 65 | T39: 580 | U39: 75 | V39: 0 | W39: 30 | X39: 5 | Y39: 3 | Z39: 2 | AA39: 10 | AB39: 2 | AC39: 3 | AD39: 11 | AE39: 1 | AF39: 0 | AG39: 9822
A40: 2015-2016 | B40: Liberty | C40: 105 | D40: 158 | E40: 35 | F40: 87 | G40: 35 | H40: 57 | I40: 39 | J40: 151 | K40: 1 | L40: 700 | M40: 126 | N40: 39 | O40: 12 | P40: 40 | Q40: 8 | R40: 1 | S40: 10 | T40: 64 | U40: 0 | V40: 0 | W40: 4 | X40: 0 | Y40: 0 | Z40: 0 | AA40: 4 | AB40: 0 | AC40: 0 | AD40: 0 | AE40: 0 | AF40: 0 | AG40: 2500
A41: 2015-2016 | B41: Madison | C41: 350 | D41: 420 | E41: 130 | F41: 470 | G41: 120 | H41: 210 | I41: 110 | J41: 300 | K41: 8 | L41: 9900 | M41: 330 | N41: 62 | O41: 24 | P41: 60 | Q41: 8 | R41: 3 | S41: 1 | T41: 290 | U41: 1 | V41: 0 | W41: 8 | X41: 1 | Y41: 1 | Z41: 1 | AA41: 1 | AB41: 1 | AC41: 1 | AD41: 1 | AE41: 1 | AF41: 1 | AG41: 15900
A42: 2015-2016 | B42: Manatee | C42: 4500 | D42: 5500 | E42: 1000 | F42: 5100 | G42: 2000 | H42: 5000 | I42: 3200 | J42: 4000 | K42: 700 | L42: 33000 | M42: 4400 | N42: 750 | O42: 1200 | P42: 1100 | Q42: 2400 | R42: 2000 | S42: 1400 | T42: 5500 | U42: 1500 | V42: 0 | W42: 250 | X42: 15 | Y42: 15 | Z42: 10 | AA42: 75 | AB42: 10 | AC42: 0 | AD42: 15 | AE42: 10 | AF42: 0 | AG42: 110000
A43: 2015-2016 | B43: Marion | C43: 4843 | D43: 5293 | E43: 1156 | F43: 4311 | G43: 3168 | H43: 4612 | I43: 4915 | J43: 4820 | K43: 297 | L43: 28929 | M43: 5670 | N43: 1403 | O43: 1105 | P43: 1445 | Q43: 2540 | R43: 1693 | S43: 791 | T43: 5953 | U43: 1430 | V43: 0 | W43: 321 | X43: 13 | Y43: 1 | Z43: 6 | AA43: 67 | AB43: 12 | AC43: 2 | AD43: 24 | AE43: 19 | AF43: 4 | AG43: 400522
A44: 2015-2016 | B44: Martin | C44: 1640 | D44: 3214 | E44: 417 | F44: 3008 | G44: 1498 | H44: 1717 | I44: 1460 | J44: 1523 | K44: 147 | L44: 24269 | M44: 1578 | N44: 288 | O44: 748 | P44: 194 | Q44: 874 | R44: 497 | S44: 450 | T44: 1319 | U44: 70 | V44: 0 | W44: 102 | X44: 6 | Y44: 14 | Z44: 0 | AA44: 50 | AB44: 14 | AC44: 0 | AD44: 18 | AE44: 1 | AF44: 0 | AG44: 63364
A45: 2015-2016 | B45: Monroe | C45: 1400 | D45: 3400 | E45: 175 | F45: 900 | G45: 860 | H45: 1150 | I45: 550 | J45: 1450 | K45: 85 | L45: 26500 | M45: 700 | N45: 230 | O45: 200 | P45: 80 | Q45: 700 | R45: 100 | S45: 70 | T45: 280 | U45: 250 | V45: 0 | W45: 85 | X45: 5 | Y45: 1 | Z45: 1 | AA45: 45 | AB45: 3 | AC45: 3 | AD45: 1 | AE45: 1 | AF45: 3 | AG45: 49000
A46: 2015-2016 | B46: Nassau | C46: 865 | D46: 1550 | E46: 170 | F46: 1500 | G46: 500 | H46: 750 | I46: 475 | J46: 1175 | K46: 49 | L46: 9000 | M46: 450 | N46: 700 | O46: 60 | P46: 950 | Q46: 475 | R46: 320 | S46: 80 | T46: 900 | U46: 320 | V46: 0 | W46: 60 | X46: 1 | Y46: 1 | Z46: 1 | AA46: 7 | AB46: 1 | AC46: 0 | AD46: 3 | AE46: 0 | AF46: 0 | AG46: 22500
A47: 2015-2016 | B47: Okaloosa | C47: 3000 | D47: 4800 | E47: 900 | F47: 3400 | G47: 1650 | H47: 3000 | I47: 1650 | J47: 3400 | K47: 350 | L47: 24800 | M47: 4300 | N47: 2000 | O47: 650 | P47: 980 | Q47: 1800 | R47: 1500 | S47: 375 | T47: 2000 | U47: 285 | V47: 0 | W47: 95 | X47: 5 | Y47: 1 | Z47: 1 | AA47: 50 | AB47: 10 | AC47: 1 | AD47: 20 | AE47: 5 | AF47: 1 | AG47: 66750
A48: 2015-2016 | B48: Okeechobee | C48: 730 | D48: 634 | E48: 117 | F48: 734 | G48: 615 | H48: 456 | I48: 194 | J48: 562 | K48: 74 | L48: 4910 | M48: 322 | N48: 153 | O48: 36 | P48: 79 | Q48: 257 | R48: 177 | S48: 62 | T48: 507 | U48: 439 | V48: 0 | W48: 74 | X48: 2 | Y48: 0 | Z48: 0 | AA48: 14 | AB48: 0 | AC48: 0 | AD48: 2 | AE48: 2 | AF48: 0 | AG48: 14604
A49: 2015-2016 | B49: Orange | C49: 18400 | D49: 23700 | E49: 6050 | F49: 19165 | G49: 11590 | H49: 31000 | I49: 6680 | J49: 19660 | K49: 630 | L49: 262000 | M49: 10560 | N49: 3100 | O49: 7100 | P49: 2200 | Q49: 24500 | R49: 10000 | S49: 4600 | T49: 15300 | U49: 1700 | V49: 0 | W49: 665 | X49: 25 | Y49: 40 | Z49: 70 | AA49: 350 | AB49: 170 | AC49: 15 | AD49: 80 | AE49: 5 | AF49: 30 | AG49: 884000
A50: 2015-2016 | B50: Osceola | C50: 5043 | D50: 5919 | E50: 1480 | F50: 4917 | G50: 4579 | H50: 5233 | I50: 1374 | J50: 5406 | K50: 113 | L50: 85196 | M50: 10037 | N50: 7586 | O50: 1405 | P50: 7877 | Q50: 3091 | R50: 667 | S50: 394 | T50: 3169 | U50: 1518 | V50: 0 | W50: 156 | X50: 9 | Y50: 5 | Z50: 6 | AA50: 72 | AB50: 12 | AC50: 4 | AD50: 9 | AE50: 17 | AF50: 1 | AG50: 0
A51: 2015-2016 | B51: Palm Beach | C51: 13500 | D51: 30500 | E51: 3200 | F51: 26900 | G51: 15000 | H51: 25800 | I51: 11100 | J51: 12800 | K51: 900 | L51: 218000 | M51: 6800 | N51: 3700 | O51: 7700 | P51: 7000 | Q51: 24000 | R51: 8000 | S51: 7400 | T51: 19700 | U51: 5500 | V51: 0 | W51: 535 | X51: 30 | Y51: 35 | Z51: 27 | AA51: 530 | AB51: 90 | AC51: 40 | AD51: 130 | AE51: 30 | AF51: 24 | AG51: 575000
A52: 2015-2016 | B52: Pasco | C52: 8676 | D52: 13296 | E52: 1656 | F52: 4200 | G52: 4821 | H52: 7275 | I52: 2750 | J52: 5990 | K52: 355 | L52: 42000 | M52: 18000 | N52: 3839 | O52: 2545 | P52: 1998 | Q52: 3824 | R52: 2075 | S52: 1600 | T52: 2886 | U52: 8500 | V52: 0 | W52: 150 | X52: 15 | Y52: 3 | Z52: 9 | AA52: 125 | AB52: 15 | AC52: 15 | AD52: 25 | AE52: 30 | AF52: 5 | AG52: 180000
A53: 2015-2016 | B53: Pinellas | C53: 17500 | D53: 24376 | E53: 4950 | F53: 17864 | G53: 8566 | H53: 20528 | I53: 10008 | J53: 11326 | K53: 700 | L53: 97492 | M53: 5496 | N53: 2670 | O53: 2992 | P53: 3202 | Q53: 3675 | R53: 3146 | S53: 4875 | T53: 5000 | U53: 1112 | V53: 0 | W53: 220 | X53: 24 | Y53: 15 | Z53: 15 | AA53: 202 | AB53: 40 | AC53: 10 | AD53: 44 | AE53: 18 | AF53: 10 | AG53: 429194
A54: 2015-2016 | B54: Polk | C54: 9250 | D54: 12500 | E54: 3325 | F54: 6250 | G54: 4750 | H54: 12200 | I54: 4500 | J54: 10200 | K54: 600 | L54: 53000 | M54: 9500 | N54: 2600 | O54: 2500 | P54: 1130 | Q54: 6010 | R54: 4080 | S54: 1500 | T54: 9150 | U54: 1750 | V54: 0 | W54: 642 | X54: 70 | Y54: 14 | Z54: 11 | AA54: 90 | AB54: 15 | AC54: 3 | AD54: 30 | AE54: 8 | AF54: 1 | AG54: 220000
A55: 2015-2016 | B55: Putnam | C55: 1600 | D55: 1700 | E55: 320 | F55: 1100 | G55: 525 | H55: 1180 | I55: 450 | J55: 1350 | K55: 180 | L55: 6800 | M55: 2000 | N55: 220 | O55: 50 | P55: 180 | Q55: 350 | R55: 260 | S55: 70 | T55: 1800 | U55: 250 | V55: 0 | W55: 110 | X55: 1 | Y55: 3 | Z55: 1 | AA55: 11 | AB55: 1 | AC55: 1 | AD55: 6 | AE55: 2 | AF55: 1 | AG55: 20000
A56: 2015-2016 | B56: Santa Rosa | C56: 1745 | D56: 2606 | E56: 441 | F56: 2052 | G56: 1152 | H56: 1302 | I56: 719 | J56: 2311 | K56: 202 | L56: 20787 | M56: 1362 | N56: 764 | O56: 195 | P56: 363 | Q56: 539 | R56: 616 | S56: 471 | T56: 1028 | U56: 675 | V56: 0 | W56: 103 | X56: 4 | Y56: 4 | Z56: 3 | AA56: 40 | AB56: 5 | AC56: 1 | AD56: 18 | AE56: 7 | AF56: 1 | AG56: 54306
A57: 2015-2016 | B57: Sarasota | C57: 4540 | D57: 10234 | E57: 581 | F57: 5702 | G57: 3184 | H57: 6829 | I57: 7176 | J57: 4015 | K57: 245 | L57: 62004 | M57: 4871 | N57: 1463 | O57: 420 | P57: 1117 | Q57: 5656 | R57: 2126 | S57: 2925 | T57: 3425 | U57: 11 | V57: 0 | W57: 211 | X57: 6 | Y57: 1 | Z57: 3 | AA57: 108 | AB57: 1 | AC57: 8 | AD57: 28 | AE57: 5 | AF57: 4 | AG57: 144277
A58: 2015-2016 | B58: Seminole | C58: 4200 | D58: 5700 | E58: 5800 | F58: 5800 | G58: 3100 | H58: 7500 | I58: 2700 | J58: 5000 | K58: 250 | L58: 82000 | M58: 3500 | N58: 1600 | O58: 1500 | P58: 1500 | Q58: 5200 | R58: 1950 | S58: 1500 | T58: 4000 | U58: 3050 | V58: 0 | W58: 250 | X58: 43 | Y58: 20 | Z58: 20 | AA58: 75 | AB58: 50 | AC58: 5 | AD58: 30 | AE58: 1 | AF58: 1 | AG58: 450000
A59: 2015-2016 | B59: St. Johns | C59: 1973 | D59: 4775 | E59: 508 | F59: 2000 | G59: 1465 | H59: 2009 | I59: 1449 | J59: 2106 | K59: 132 | L59: 20000 | M59: 3238 | N59: 676 | O59: 170 | P59: 150 | Q59: 392 | R59: 28 | S59: 33 | T59: 706 | U59: 31 | V59: 0 | W59: 136 | X59: 2 | Y59: 1 | Z59: 0 | AA59: 44 | AB59: 6 | AC59: 1 | AD59: 26 | AE59: 1 | AF59: 0 | AG59: 45000
A60: 2015-2016 | B60: St. Lucie | C60: 4300 | D60: 5700 | E60: 1200 | F60: 3600 | G60: 2600 | H60: 4600 | I60: 2550 | J60: 3200 | K60: 400 | L60: 50000 | M60: 2000 | N60: 2800 | O60: 1400 | P60: 1800 | Q60: 2000 | R60: 1700 | S60: 1000 | T60: 3000 | U60: 270 | V60: 0 | W60: 260 | X60: 4 | Y60: 4 | Z60: 3 | AA60: 60 | AB60: 15 | AC60: 2 | AD60: 8 | AE60: 8 | AF60: 0 | AG60: 118000
A61: 2015-2016 | B61: Sumter | C61: 930 | D61: 690 | E61: 175 | F61: 1100 | G61: 600 | H61: 575 | I61: 1200 | J61: 780 | K61: 65 | L61: 12500 | M61: 400 | N61: 150 | O61: 40 | P61: 240 | Q61: 440 | R61: 250 | S61: 300 | T61: 650 | U61: 50 | V61: 0 | W61: 40 | X61: 1 | Y61: 1 | Z61: 1 | AA61: 20 | AB61: 2 | AC61: 1 | AD61: 10 | AE61: 1 | AF61: 0 | AG61: 65000
A62: 2015-2016 | B62: Suwannee | C62: 640 | D62: 590 | E62: 185 | F62: 600 | G62: 340 | H62: 480 | I62: 250 | J62: 960 | K62: 15 | L62: 4015 | M62: 880 | N62: 100 | O62: 85 | P62: 80 | Q62: 45 | R62: 100 | S62: 10 | T62: 455 | U62: 2 | V62: 0 | W62: 10 | X62: 10 | Y62: 1 | Z62: 1 | AA62: 11 | AB62: 1 | AC62: 1 | AD62: 1 | AE62: 1 | AF62: 1 | AG62: 13484
A63: 2015-2016 | B63: Taylor | C63: 415 | D63: 662 | E63: 62 | F63: 338 | G63: 222 | H63: 211 | I63: 111 | J63: 386 | K63: 14 | L63: 2504 | M63: 510 | N63: 156 | O63: 11 | P63: 0 | Q63: 80 | R63: 39 | S63: 6 | T63: 256 | U63: 0 | V63: 0 | W63: 19 | X63: 1 | Y63: 0 | Z63: 0 | AA63: 10 | AB63: 0 | AC63: 1 | AD63: 0 | AE63: 0 | AF63: 0 | AG63: 0
A64: 2015-2016 | B64: Union | C64: 225 | D64: 210 | E64: 60 | F64: 140 | G64: 125 | H64: 160 | I64: 130 | J64: 240 | K64: 3 | L64: 1200 | M64: 65 | N64: 50 | O64: 30 | P64: 50 | Q64: 45 | R64: 30 | S64: 8 | T64: 200 | U64: 8 | V64: 0 | W64: 5 | X64: 1 | Y64: 0 | Z64: 0 | AA64: 10 | AB64: 0 | AC64: 0 | AD64: 0 | AE64: 0 | AF64: 0 | AG64: 3000
A65: 2015-2016 | B65: Volusia | C65: 9550 | D65: 15832 | E65: 2158 | F65: 12758 | G65: 4336 | H65: 8694 | I65: 5298 | J65: 7214 | K65: 384 | L65: 63758 | M65: 3194 | N65: 1370 | O65: 3358 | P65: 386 | Q65: 4236 | R65: 3042 | S65: 2036 | T65: 8246 | U65: 1238 | V65: 0 | W65: 282 | X65: 6 | Y65: 6 | Z65: 0 | AA65: 128 | AB65: 38 | AC65: 4 | AD65: 40 | AE65: 12 | AF65: 0 | AG65: 180277
A66: 2015-2016 | B66: Wakulla | C66: 291 | D66: 289 | E66: 88 | F66: 296 | G66: 286 | H66: 317 | I66: 180 | J66: 417 | K66: 13 | L66: 2793 | M66: 257 | N66: 75 | O66: 7 | P66: 87 | Q66: 125 | R66: 72 | S66: 29 | T66: 243 | U66: 5 | V66: 0 | W66: 24 | X66: 0 | Y66: 0 | Z66: 0 | AA66: 12 | AB66: 0 | AC66: 0 | AD66: 0 | AE66: 0 | AF66: 0 | AG66: 9550
A67: 2015-2016 | B67: Walton | C67: 861 | D67: 2413 | E67: 373 | F67: 1076 | G67: 829 | H67: 784 | I67: 369 | J67: 960 | K67: 145 | L67: 5816 | M67: 550 | N67: 650 | O67: 48 | P67: 125 | Q67: 675 | R67: 260 | S67: 55 | T67: 475 | U67: 175 | V67: 0 | W67: 70 | X67: 1 | Y67: 2 | Z67: 3 | AA67: 50 | AB67: 3 | AC67: 1 | AD67: 5 | AE67: 2 | AF67: 2 | AG67: 21950
A68: 2015-2016 | B68: Washington | C68: 400 | D68: 650 | E68: 96 | F68: 300 | G68: 250 | H68: 255 | I68: 115 | J68: 400 | K68: 20 | L68: 3800 | M68: 254 | N68: 56 | O68: 5 | P68: 39 | Q68: 2 | R68: 2 | S68: 2 | T68: 126 | U68: 2 | V68: 0 | W68: 12 | X68: 2 | Y68: 2 | Z68: 2 | AA68: 4 | AB68: 2 | AC68: 5 | AD68: 1 | AE68: 1 | AF68: 0 | AG68: 27000

Sheet DownloadBudgetData Original (hidden)
A1: FiscalYear | B1: County | C1: Outputs_NewCases_CrimCir | D1: Outputs_NewCases_CrimCounty | E1: Outputs_NewCases_CrimJuvDel | F1: Outputs_NewCases_CrimTraf | G1: Outputs_NewCases_CivCir | H1: Outputs_NewCases_CivCounty | I1: Outputs_NewCases_CivProbate | J1: Outputs_NewCases_CivFamily | K1: Outputs_NewCases_CivJuvDep | L1: Outputs_NewCases_CivTraf | M1: Outputs_Reopens_CrimCir | N1: Outputs_Reopens_CrimCounty | O1: Outputs_Reopens_CrimJuvDel | P1: Outputs_Reopens_CrimTraf | Q1: Outputs_Reopens_CivCir | R1: Outputs_Reopens_CivCounty | S1: Outputs_Reopens_CivProbate | T1: Outputs_Reopens_CivFamily | U1: Outputs_Reopens_CivJuvDep | V1: Outputs_Reopens_CivTraf | W1: Outputs_NoticesOfAppeal_CrimCir | X1: Outputs_NoticesOfAppeal_CrimCounty | Y1: Outputs_NoticesOfAppeal_CrimJuvDel | Z1: Outputs_NoticesOfAppeal_CrimTraf | AA1: Outputs_NoticesOfAppeal_CivCir | AB1: Outputs_NoticesOfAppeal_CivCounty | AC1: Outputs_NoticesOfAppeal_CivProbate | AD1: Outputs_NoticesOfAppeal_CivFamily | AE1: Outputs_NoticesOfAppeal_CivJuvDep | AF1: Outputs_NoticesOfAppeal_CivTraf | AG1: Outputs_FinReceipts
A2: 2015-2016 | B2: Alachua | C2: 4550 | D2: 5900 | E2: 1220 | F2: 4050 | G2: 1750 | H2: 4800 | I2: 2700 | J2: 2800 | K2: 160 | L2: 50000 | M2: 1800 | N2: 600 | O2: 800 | P2: 700 | Q2: 1300 | R2: 2200 | S2: 1450 | T2: 4800 | U2: 250 | V2: 0 | W2: 200 | X2: 10 | Y2: 10 | Z2: 15 | AA2: 30 | AB2: 6 | AC2: 5 | AD2: 0 | AE2: 0 | AF2: 0 | AG2: 150000
A3: 2015-2016 | B3: Baker | C3: 571 | D3: 741 | E3: 121 | F3: 479 | G3: 153 | H3: 266 | I3: 193 | J3: 418 | K3: 64 | L3: 4038 | M3: 186 | N3: 234 | O3: 39 | P3: 172 | Q3: 6 | R3: 0 | S3: 6 | T3: 214 | U3: 0 | V3: 0 | W3: 16 | X3: 1 | Y3: 2 | Z3: 0 | AA3: 4 | AB3: 0 | AC3: 1 | AD3: 1 | AE3: 1 | AF3: 0 | AG3: 33140
A4: 2015-2016 | B4: Bay | C4: 5300 | D4: 4200 | E4: 1035 | F4: 2100 | G4: 1460 | H4: 3081 | I4: 1479 | J4: 2787 | K4: 315 | L4: 32165 | M4: 2562 | N4: 1200 | O4: 700 | P4: 500 | Q4: 1000 | R4: 840 | S4: 40 | T4: 2400 | U4: 1600 | V4: 0 | W4: 185 | X4: 10 | Y4: 5 | Z4: 2 | AA4: 30 | AB4: 6 | AC4: 4 | AD4: 10 | AE4: 12 | AF4: 1 | AG4: 75794
A5: 2015-2016 | B5: Bradford | C5: 700 | D5: 650 | E5: 120 | F5: 600 | G5: 250 | H5: 325 | I5: 115 | J5: 350 | K5: 16 | L5: 8200 | M5: 125 | N5: 130 | O5: 15 | P5: 85 | Q5: 60 | R5: 50 | S5: 12 | T5: 235 | U5: 0 | V5: 0 | W5: 5 | X5: 1 | Y5: 0 | Z5: 0 | AA5: 10 | AB5: 1 | AC5: 0 | AD5: 0 | AE5: 0 | AF5: 0 | AG5: 14000
A6: 2015-2016 | B6: Brevard | C6: 9200 | D6: 10000 | E6: 1800 | F6: 7500 | G6: 5600 | H6: 7000 | I6: 5000 | J6: 7200 | K6: 350 | L6: 55000 | M6: 8000 | N6: 2100 | O6: 2600 | P6: 2100 | Q6: 6700 | R6: 3600 | S6: 2000 | T6: 8700 | U6: 500 | V6: 0 | W6: 500 | X6: 25 | Y6: 3 | Z6: 30 | AA6: 100 | AB6: 20 | AC6: 10 | AD6: 35 | AE6: 25 | AF6: 15 | AG6: 453037
A7: 2015-2016 | B7: Broward | C7: 16920 | D7: 26760 | E7: 4680 | F7: 32520 | G7: 23880 | H7: 70320 | I7: 11280 | J7: 25800 | K7: 1080 | L7: 359040 | M7: 16680 | N7: 1920 | O7: 1770 | P7: 1320 | Q7: 56160 | R7: 26880 | S7: 480 | T7: 26040 | U7: 4440 | V7: 0 | W7: 840 | X7: 120 | Y7: 40 | Z7: 10 | AA7: 720 | AB7: 240 | AC7: 40 | AD7: 120 | AE7: 40 | AF7: 10 | AG7: 925000
A8: 2015-2016 | B8: Calhoun | C8: 210 | D8: 150 | E8: 30 | F8: 125 | G8: 75 | H8: 120 | I8: 55 | J8: 225 | K8: 10 | L8: 1600 | M8: 180 | N8: 25 | O8: 8 | P8: 24 | Q8: 10 | R8: 10 | S8: 2 | T8: 100 | U8: 35 | V8: 0 | W8: 5 | X8: 0 | Y8: 0 | Z8: 0 | AA8: 0 | AB8: 0 | AC8: 0 | AD8: 0 | AE8: 0 | AF8: 0 | AG8: 4700
A9: 2015-2016 | B9: Charlotte | C9: 2400 | D9: 2500 | E9: 650 | F9: 2500 | G9: 1800 | H9: 1900 | I9: 2400 | J9: 2150 | K9: 125 | L9: 15500 | M9: 1015 | N9: 450 | O9: 300 | P9: 500 | Q9: 1075 | R9: 400 | S9: 475 | T9: 580 | U9: 30 | V9: 0 | W9: 60 | X9: 8 | Y9: 1 | Z9: 1 | AA9: 50 | AB9: 3 | AC9: 3 | AD9: 0 | AE9: 3 | AF9: 3 | AG9: 53000
A10: 2015-2016 | B10: Citrus | C10: 1200 | D10: 1800 | E10: 300 | F10: 900 | G10: 1150 | H10: 1600 | I10: 1585 | J10: 1800 | K10: 220 | L10: 5500 | M10: 2500 | N10: 900 | O10: 260 | P10: 600 | Q10: 1080 | R10: 700 | S10: 750 | T10: 1800 | U10: 1550 | V10: 0 | W10: 143 | X10: 2 | Y10: 2 | Z10: 1 | AA10: 24 | AB10: 4 | AC10: 3 | AD10: 4 | AE10: 12 | AF10: 2 | AG10: 130000
A11: 2015-2016 | B11: Clay | C11: 1700 | D11: 2250 | E11: 660 | F11: 1920 | G11: 1320 | H11: 2650 | I11: 950 | J11: 2340 | K11: 270 | L11: 20000 | M11: 950 | N11: 190 | O11: 215 | P11: 150 | Q11: 1050 | R11: 570 | S11: 60 | T11: 2250 | U11: 1200 | V11: 0 | W11: 40 | X11: 6 | Y11: 6 | Z11: 3 | AA11: 46 | AB11: 7 | AC11: 1 | AD11: 15 | AE11: 2 | AF11: 1 | AG11: 54641
A12: 2015-2016 | B12: Collier | C12: 2400 | D12: 4200 | E12: 700 | F12: 4900 | G12: 2900 | H12: 3800 | I12: 3800 | J12: 3100 | K12: 250 | L12: 33000 | M12: 1800 | N12: 1300 | O12: 300 | P12: 1200 | Q12: 3100 | R12: 1500 | S12: 1200 | T12: 3200 | U12: 800 | V12: 0 | W12: 100 | X12: 1 | Y12: 1 | Z12: 1 | AA12: 100 | AB12: 1 | AC12: 1 | AD12: 1 | AE12: 1 | AF12: 1 | AG12: 204000
A13: 2015-2016 | B13: Columbia | C13: 1100 | D13: 1400 | E13: 300 | F13: 1100 | G13: 550 | H13: 1110 | I13: 420 | J13: 1200 | K13: 175 | L13: 12000 | M13: 1000 | N13: 350 | O13: 160 | P13: 450 | Q13: 130 | R13: 230 | S13: 110 | T13: 1050 | U13: 100 | V13: 0 | W13: 60 | X13: 1 | Y13: 0 | Z13: 1 | AA13: 35 | AB13: 2 | AC13: 1 | AD13: 1 | AE13: 1 | AF13: 1 | AG13: 23000
A14: 2015-2016 | B14: Dade | C14: 30362 | D14: 45038 | E14: 4889 | F14: 76503 | G14: 30460 | H14: 78035 | I14: 13663 | J14: 30782 | K14: 4513 | L14: 722200 | M14: 26629 | N14: 14793 | O14: 5150 | P14: 48378 | Q14: 56040 | R14: 24587 | S14: 46801 | T14: 25431 | U14: 11770 | V14: 0 | W14: 1007 | X14: 23 | Y14: 70 | Z14: 28 | AA14: 1035 | AB14: 357 | AC14: 35 | AD14: 140 | AE14: 75 | AF14: 0 | AG14: 1274168
A15: 2015-2016 | B15: Desoto | C15: 560 | D15: 725 | E15: 250 | F15: 475 | G15: 200 | H15: 330 | I15: 110 | J15: 445 | K15: 20 | L15: 5000 | M15: 250 | N15: 100 | O15: 100 | P15: 50 | Q15: 45 | R15: 1 | S15: 1 | T15: 80 | U15: 5 | V15: 0 | W15: 20 | X15: 1 | Y15: 1 | Z15: 1 | AA15: 15 | AB15: 1 | AC15: 1 | AD15: 1 | AE15: 1 | AF15: 1 | AG15: 10750
A16: 2015-2016 | B16: Dixie | C16: 260 | D16: 231 | E16: 43 | F16: 185 | G16: 106 | H16: 146 | I16: 91 | J16: 358 | K16: 34 | L16: 2600 | M16: 53 | N16: 40 | O16: 2 | P16: 4 | Q16: 3 | R16: 2 | S16: 3 | T16: 10 | U16: 1 | V16: 0 | W16: 4 | X16: 0 | Y16: 0 | Z16: 0 | AA16: 4 | AB16: 0 | AC16: 0 | AD16: 2 | AE16: 2 | AF16: 0 | AG16: 4334
A17: 2015-2016 | B17: Duval | C17: 11570 | D17: 21514 | E17: 3410 | F17: 19009 | G17: 8295 | H17: 20839 | I17: 6148 | J17: 13672 | K17: 1117 | L17: 109515 | M17: 8185 | N17: 2723 | O17: 1878 | P17: 1957 | Q17: 3782 | R17: 2284 | S17: 567 | T17: 6589 | U17: 427 | V17: 0 | W17: 337 | X17: 2 | Y17: 2 | Z17: 5 | AA17: 206 | AB17: 133 | AC17: 14 | AD17: 66 | AE17: 82 | AF17: 7 | AG17: 278875
A18: 2015-2016 | B18: Escambia | C18: 6048 | D18: 7063 | E18: 1569 | F18: 3612 | G18: 2198 | H18: 4185 | I18: 3425 | J18: 5032 | K18: 300 | L18: 34098 | M18: 6963 | N18: 1391 | O18: 5782 | P18: 503 | Q18: 1905 | R18: 1440 | S18: 2250 | T18: 6584 | U18: 4538 | V18: 0 | W18: 670 | X18: 30 | Y18: 4 | Z18: 5 | AA18: 50 | AB18: 15 | AC18: 4 | AD18: 16 | AE18: 15 | AF18: 5 | AG18: 117250
A19: 2015-2016 | B19: Flagler | C19: 1100 | D19: 1600 | E19: 250 | F19: 1200 | G19: 800 | H19: 1100 | I19: 700 | J19: 1200 | K19: 50 | L19: 9000 | M19: 440 | N19: 300 | O19: 60 | P19: 140 | Q19: 900 | R19: 350 | S19: 160 | T19: 900 | U19: 200 | V19: 0 | W19: 40 | X19: 1 | Y19: 1 | Z19: 1 | AA19: 15 | AB19: 1 | AC19: 1 | AD19: 3 | AE19: 1 | AF19: 1 | AG19: 24000
A20: 2015-2016 | B20: Franklin | C20: 250 | D20: 550 | E20: 40 | F20: 175 | G20: 140 | H20: 90 | I20: 80 | J20: 200 | K20: 8 | L20: 1200 | M20: 200 | N20: 175 | O20: 35 | P20: 100 | Q20: 75 | R20: 1 | S20: 0 | T20: 1 | U20: 0 | V20: 0 | W20: 2 | X20: 2 | Y20: 0 | Z20: 1 | AA20: 4 | AB20: 1 | AC20: 0 | AD20: 1 | AE20: 0 | AF20: 0 | AG20: 4565
A21: 2015-2016 | B21: Gadsden | C21: 553 | D21: 649 | E21: 126 | F21: 995 | G21: 411 | H21: 557 | I21: 432 | J21: 581 | K21: 11 | L21: 11701 | M21: 558 | N21: 461 | O21: 30 | P21: 0 | Q21: 150 | R21: 371 | S21: 43 | T21: 598 | U21: 0 | V21: 0 | W21: 51 | X21: 0 | Y21: 0 | Z21: 0 | AA21: 0 | AB21: 0 | AC21: 0 | AD21: 0 | AE21: 0 | AF21: 0 | AG21: 24619
A22: 2015-2016 | B22: Gilchrist | C22: 210 | D22: 280 | E22: 55 | F22: 150 | G22: 125 | H22: 145 | I22: 90 | J22: 300 | K22: 15 | L22: 1000 | M22: 85 | N22: 50 | O22: 15 | P22: 85 | Q22: 12 | R22: 2 | S22: 6 | T22: 190 | U22: 1 | V22: 0 | W22: 2 | X22: 0 | Y22: 0 | Z22: 0 | AA22: 1 | AB22: 0 | AC22: 1 | AD22: 2 | AE22: 1 | AF22: 0 | AG22: 3600
A23: 2015-2016 | B23: Glades | C23: 140 | D23: 343 | E23: 23 | F23: 199 | G23: 54 | H23: 79 | I23: 58 | J23: 102 | K23: 4 | L23: 4509 | M23: 48 | N23: 22 | O23: 0 | P23: 32 | Q23: 31 | R23: 4 | S23: 2 | T23: 64 | U23: 5 | V23: 0 | W23: 6 | X23: 0 | Y23: 0 | Z23: 0 | AA23: 2 | AB23: 1 | AC23: 0 | AD23: 0 | AE23: 1 | AF23: 0 | AG23: 6618
A24: 2015-2016 | B24: Gulf | C24: 337 | D24: 288 | E24: 38 | F24: 190 | G24: 133 | H24: 125 | I24: 114 | J24: 185 | K24: 8 | L24: 852 | M24: 161 | N24: 39 | O24: 16 | P24: 71 | Q24: 56 | R24: 0 | S24: 0 | T24: 140 | U24: 0 | V24: 0 | W24: 9 | X24: 0 | Y24: 0 | Z24: 0 | AA24: 11 | AB24: 0 | AC24: 0 | AD24: 0 | AE24: 0 | AF24: 0 | AG24: 4267
A25: 2015-2016 | B25: Hamilton | C25: 170 | D25: 215 | E25: 80 | F25: 230 | G25: 350 | H25: 75 | I25: 60 | J25: 195 | K25: 8 | L25: 2500 | M25: 100 | N25: 20 | O25: 10 | P25: 5 | Q25: 24 | R25: 10 | S25: 10 | T25: 8 | U25: 24 | V25: 0 | W25: 15 | X25: 1 | Y25: 2 | Z25: 1 | AA25: 5 | AB25: 1 | AC25: 2 | AD25: 1 | AE25: 1 | AF25: 1 | AG25: 7500
A26: 2015-2016 | B26: Hardee | C26: 430 | D26: 690 | E26: 149 | F26: 785 | G26: 140 | H26: 210 | I26: 125 | J26: 400 | K26: 20 | L26: 5055 | M26: 210 | N26: 60 | O26: 30 | P26: 30 | Q26: 75 | R26: 60 | S26: 95 | T26: 395 | U26: 115 | V26: 0 | W26: 0 | X26: 0 | Y26: 0 | Z26: 0 | AA26: 0 | AB26: 0 | AC26: 0 | AD26: 0 | AE26: 0 | AF26: 0 | AG26: 11500
A27: 2015-2016 | B27: Hendry | C27: 760 | D27: 1200 | E27: 245 | F27: 1300 | G27: 280 | H27: 380 | I27: 110 | J27: 550 | K27: 36 | L27: 7000 | M27: 120 | N27: 150 | O27: 30 | P27: 15 | Q27: 60 | R27: 15 | S27: 35 | T27: 190 | U27: 50 | V27: 0 | W27: 15 | X27: 1 | Y27: 1 | Z27: 1 | AA27: 5 | AB27: 1 | AC27: 20 | AD27: 75 | AE27: 50 | AF27: 1 | AG27: 15000
A28: 2015-2016 | B28: Hernando | C28: 2100 | D28: 2150 | E28: 650 | F28: 1500 | G28: 1700 | H28: 2500 | I28: 2550 | J28: 2300 | K28: 155 | L28: 28000 | M28: 3800 | N28: 700 | O28: 250 | P28: 300 | Q28: 1600 | R28: 825 | S28: 800 | T28: 1200 | U28: 666 | V28: 0 | W28: 100 | X28: 2 | Y28: 0 | Z28: 0 | AA28: 20 | AB28: 5 | AC28: 0 | AD28: 5 | AE28: 2 | AF28: 2 | AG28: 70350
A29: 2015-2016 | B29: Highlands | C29: 1062 | D29: 1263 | E29: 418 | F29: 972 | G29: 691 | H29: 1300 | I29: 1130 | J29: 1077 | K29: 100 | L29: 9206 | M29: 902 | N29: 1629 | O29: 1255 | P29: 1250 | Q29: 394 | R29: 204 | S29: 211 | T29: 1505 | U29: 270 | V29: 0 | W29: 113 | X29: 1 | Y29: 1 | Z29: 2 | AA29: 18 | AB29: 3 | AC29: 1 | AD29: 1 | AE29: 2 | AF29: 2 | AG29: 25500
A30: 2015-2016 | B30: Hillsborough | C30: 18740 | D30: 24714 | E30: 4735 | F30: 32815 | G30: 10238 | H30: 36073 | I30: 10233 | J30: 17358 | K30: 992 | L30: 187899 | M30: 15613 | N30: 1568 | O30: 2631 | P30: 1276 | Q30: 19198 | R30: 13844 | S30: 5407 | T30: 14447 | U30: 631 | V30: 0 | W30: 998 | X30: 19 | Y30: 34 | Z30: 43 | AA30: 214 | AB30: 26 | AC30: 5 | AD30: 126 | AE30: 39 | AF30: 19 | AG30: 357734
A31: 2015-2016 | B31: Holmes | C31: 475 | D31: 500 | E31: 70 | F31: 250 | G31: 130 | H31: 200 | I31: 100 | J31: 330 | K31: 17 | L31: 3450 | M31: 250 | N31: 70 | O31: 25 | P31: 43 | Q31: 18 | R31: 10 | S31: 5 | T31: 100 | U31: 20 | V31: 0 | W31: 12 | X31: 0 | Y31: 0 | Z31: 0 | AA31: 4 | AB31: 1 | AC31: 0 | AD31: 1 | AE31: 0 | AF31: 0 | AG31: 7500
A32: 2015-2016 | B32: Indian River | C32: 1440 | D32: 2940 | E32: 400 | F32: 1510 | G32: 1100 | H32: 1810 | I32: 1512 | J32: 1900 | K32: 125 | L32: 18200 | M32: 1532 | N32: 196 | O32: 1184 | P32: 74 | Q32: 988 | R32: 508 | S32: 444 | T32: 1734 | U32: 1676 | V32: 0 | W32: 50 | X32: 4 | Y32: 1 | Z32: 2 | AA32: 42 | AB32: 8 | AC32: 2 | AD32: 4 | AE32: 2 | AF32: 1 | AG32: 46500
A33: 2015-2016 | B33: Jackson | C33: 597 | D33: 506 | E33: 130 | F33: 419 | G33: 756 | H33: 640 | I33: 288 | J33: 215 | K33: 137 | L33: 6655 | M33: 245 | N33: 42 | O33: 13 | P33: 44 | Q33: 89 | R33: 3 | S33: 183 | T33: 445 | U33: 35 | V33: 0 | W33: 19 | X33: 0 | Y33: 0 | Z33: 0 | AA33: 15 | AB33: 8 | AC33: 0 | AD33: 1 | AE33: 0 | AF33: 0 | AG33: 13490
A34: 2015-2016 | B34: Jefferson | C34: 190 | D34: 208 | E34: 27 | F34: 294 | G34: 149 | H34: 137 | I34: 73 | J34: 159 | K34: 11 | L34: 6188 | M34: 99 | N34: 7 | O34: 11 | P34: 4 | Q34: 13 | R34: 90 | S34: 2 | T34: 200 | U34: 9 | V34: 0 | W34: 0 | X34: 0 | Y34: 0 | Z34: 0 | AA34: 4 | AB34: 0 | AC34: 0 | AD34: 0 | AE34: 0 | AF34: 0 | AG34: 7727
A35: 2015-2016 | B35: Lafayette | C35: 45 | D35: 98 | E35: 8 | F35: 60 | G35: 58 | H35: 85 | I35: 41 | J35: 125 | K35: 4 | L35: 575 | M35: 55 | N35: 8 | O35: 7 | P35: 10 | Q35: 4 | R35: 15 | S35: 1 | T35: 30 | U35: 1 | V35: 0 | W35: 4 | X35: 1 | Y35: 1 | Z35: 1 | AA35: 3 | AB35: 1 | AC35: 1 | AD35: 2 | AE35: 1 | AF35: 1 | AG35: 1326
A36: 2015-2016 | B36: Lake | C36: 3200 | D36: 3200 | E36: 900 | F36: 4050 | G36: 2400 | H36: 4100 | I36: 2550 | J36: 3650 | K36: 230 | L36: 39000 | M36: 1200 | N36: 760 | O36: 320 | P36: 515 | Q36: 2750 | R36: 1650 | S36: 625 | T36: 3900 | U36: 1100 | V36: 0 | W36: 160 | X36: 3 | Y36: 0 | Z36: 2 | AA36: 60 | AB36: 2 | AC36: 0 | AD36: 10 | AE36: 10 | AF36: 10 | AG36: 341500
A37: 2015-2016 | B37: Lee | C37: 5700 | D37: 15000 | E37: 2250 | F37: 9200 | G37: 5000 | H37: 11000 | I37: 6600 | J37: 8600 | K37: 450 | L37: 88000 | M37: 19000 | N37: 3700 | O37: 615 | P37: 3200 | Q37: 7000 | R37: 4700 | S37: 3500 | T37: 7800 | U37: 2000 | V37: 0 | W37: 225 | X37: 15 | Y37: 5 | Z37: 10 | AA37: 170 | AB37: 25 | AC37: 2 | AD37: 35 | AE37: 10 | AF37: 0 | AG37: 230000
A38: 2015-2016 | B38: Leon | C38: 4115 | D38: 3543 | E38: 811 | F38: 3138 | G38: 3739 | H38: 6300 | I38: 2505 | J38: 4500 | K38: 125 | L38: 37950 | M38: 824 | N38: 293 | O38: 3594 | P38: 227 | Q38: 1895 | R38: 2284 | S38: 1314 | T38: 3975 | U38: 1968 | V38: 0 | W38: 269 | X38: 5 | Y38: 24 | Z38: 2 | AA38: 410 | AB38: 6 | AC38: 2 | AD38: 9 | AE38: 12 | AF38: 5 | AG38: 119000
A39: 2015-2016 | B39: Levy | C39: 650 | D39: 800 | E39: 160 | F39: 550 | G39: 325 | H39: 510 | I39: 245 | J39: 850 | K39: 20 | L39: 3500 | M39: 750 | N39: 320 | O39: 350 | P39: 55 | Q39: 205 | R39: 250 | S39: 55 | T39: 575 | U39: 100 | V39: 0 | W39: 43 | X39: 2 | Y39: 1 | Z39: 1 | AA39: 10 | AB39: 3 | AC39: 1 | AD39: 5 | AE39: 2 | AF39: 1 | AG39: 9822
A40: 2015-2016 | B40: Liberty | C40: 94 | D40: 145 | E40: 36 | F40: 60 | G40: 38 | H40: 55 | I40: 41 | J40: 159 | K40: 1 | L40: 572 | M40: 140 | N40: 31 | O40: 6 | P40: 41 | Q40: 10 | R40: 1 | S40: 10 | T40: 51 | U40: 0 | V40: 0 | W40: 4 | X40: 0 | Y40: 0 | Z40: 0 | AA40: 4 | AB40: 0 | AC40: 0 | AD40: 0 | AE40: 0 | AF40: 0 | AG40: 2500
A41: 2015-2016 | B41: Madison | C41: 350 | D41: 420 | E41: 130 | F41: 470 | G41: 120 | H41: 210 | I41: 110 | J41: 300 | K41: 8 | L41: 9900 | M41: 330 | N41: 62 | O41: 24 | P41: 60 | Q41: 8 | R41: 3 | S41: 1 | T41: 290 | U41: 1 | V41: 0 | W41: 8 | X41: 1 | Y41: 1 | Z41: 1 | AA41: 1 | AB41: 1 | AC41: 1 | AD41: 1 | AE41: 1 | AF41: 1 | AG41: 15900
A42: 2015-2016 | B42: Manatee | C42: 4500 | D42: 5500 | E42: 1000 | F42: 5100 | G42: 2000 | H42: 5000 | I42: 3200 | J42: 4000 | K42: 700 | L42: 33000 | M42: 4400 | N42: 750 | O42: 1200 | P42: 1100 | Q42: 2400 | R42: 2000 | S42: 1400 | T42: 5500 | U42: 1500 | V42: 0 | W42: 250 | X42: 15 | Y42: 15 | Z42: 10 | AA42: 75 | AB42: 10 | AC42: 0 | AD42: 15 | AE42: 10 | AF42: 0 | AG42: 110000
A43: 2015-2016 | B43: Marion | C43: 4843 | D43: 5293 | E43: 1156 | F43: 4311 | G43: 3168 | H43: 4612 | I43: 4915 | J43: 4820 | K43: 297 | L43: 28929 | M43: 5670 | N43: 1403 | O43: 1105 | P43: 1445 | Q43: 2540 | R43: 1693 | S43: 791 | T43: 5953 | U43: 1430 | V43: 0 | W43: 321 | X43: 13 | Y43: 1 | Z43: 6 | AA43: 67 | AB43: 12 | AC43: 2 | AD43: 24 | AE43: 19 | AF43: 4 | AG43: 400522
A44: 2015-2016 | B44: Martin | C44: 1694 | D44: 3055 | E44: 402 | F44: 3256 | G44: 1540 | H44: 1712 | I44: 1466 | J44: 1527 | K44: 143 | L44: 23512 | M44: 1882 | N44: 320 | O44: 824 | P44: 208 | Q44: 822 | R44: 460 | S44: 425 | T44: 1122 | U44: 59 | V44: 0 | W44: 111 | X44: 4 | Y44: 7 | Z44: 3 | AA44: 52 | AB44: 13 | AC44: 0 | AD44: 9 | AE44: 3 | AF44: 1 | AG44: 59646
A45: 2015-2016 | B45: Monroe | C45: 1400 | D45: 3400 | E45: 175 | F45: 900 | G45: 860 | H45: 1150 | I45: 550 | J45: 1450 | K45: 85 | L45: 26500 | M45: 700 | N45: 230 | O45: 200 | P45: 80 | Q45: 700 | R45: 100 | S45: 70 | T45: 280 | U45: 250 | V45: 0 | W45: 85 | X45: 5 | Y45: 1 | Z45: 1 | AA45: 45 | AB45: 3 | AC45: 3 | AD45: 1 | AE45: 1 | AF45: 3 | AG45: 49000
A46: 2015-2016 | B46: Nassau | C46: 865 | D46: 1550 | E46: 170 | F46: 1500 | G46: 500 | H46: 750 | I46: 475 | J46: 1175 | K46: 49 | L46: 9000 | M46: 450 | N46: 700 | O46: 60 | P46: 950 | Q46: 475 | R46: 320 | S46: 80 | T46: 900 | U46: 320 | V46: 0 | W46: 60 | X46: 1 | Y46: 1 | Z46: 1 | AA46: 7 | AB46: 1 | AC46: 0 | AD46: 3 | AE46: 0 | AF46: 0 | AG46: 22500
A47: 2015-2016 | B47: Okaloosa | C47: 3000 | D47: 4800 | E47: 900 | F47: 3400 | G47: 1650 | H47: 3000 | I47: 1650 | J47: 3400 | K47: 350 | L47: 24800 | M47: 4300 | N47: 2000 | O47: 650 | P47: 980 | Q47: 1800 | R47: 1500 | S47: 375 | T47: 2000 | U47: 285 | V47: 0 | W47: 95 | X47: 5 | Y47: 1 | Z47: 1 | AA47: 50 | AB47: 10 | AC47: 1 | AD47: 20 | AE47: 5 | AF47: 1 | AG47: 65750
A48: 2015-2016 | B48: Okeechobee | C48: 730 | D48: 634 | E48: 117 | F48: 734 | G48: 615 | H48: 456 | I48: 194 | J48: 562 | K48: 74 | L48: 4910 | M48: 322 | N48: 153 | O48: 36 | P48: 79 | Q48: 257 | R48: 177 | S48: 62 | T48: 507 | U48: 439 | V48: 0 | W48: 74 | X48: 2 | Y48: 0 | Z48: 0 | AA48: 14 | AB48: 0 | AC48: 0 | AD48: 2 | AE48: 2 | AF48: 0 | AG48: 14604
A49: 2015-2016 | B49: Orange | C49: 18400 | D49: 23700 | E49: 6050 | F49: 19165 | G49: 11590 | H49: 31000 | I49: 6680 | J49: 19660 | K49: 630 | L49: 262000 | M49: 10560 | N49: 3100 | O49: 7100 | P49: 2200 | Q49: 24500 | R49: 10000 | S49: 4600 | T49: 15300 | U49: 1700 | V49: 0 | W49: 665 | X49: 25 | Y49: 40 | Z49: 70 | AA49: 350 | AB49: 170 | AC49: 15 | AD49: 80 | AE49: 5 | AF49: 30 | AG49: 884000
A50: 2015-2016 | B50: Osceola | C50: 5043 | D50: 5919 | E50: 1480 | F50: 4917 | G50: 4579 | H50: 5233 | I50: 1374 | J50: 5406 | K50: 113 | L50: 85196 | M50: 10037 | N50: 7586 | O50: 1405 | P50: 7877 | Q50: 3091 | R50: 667 | S50: 394 | T50: 3169 | U50: 1518 | V50: 0 | W50: 156 | X50: 9 | Y50: 5 | Z50: 6 | AA50: 72 | AB50: 12 | AC50: 4 | AD50: 9 | AE50: 17 | AF50: 1 | AG50: 170000
A51: 2015-2016 | B51: Palm Beach | C51: 14000 | D51: 32750 | E51: 3300 | F51: 29000 | G51: 15000 | H51: 28800 | I51: 11100 | J51: 12750 | K51: 890 | L51: 257000 | M51: 6800 | N51: 2000 | O51: 8000 | P51: 4500 | Q51: 24000 | R51: 8000 | S51: 7400 | T51: 19700 | U51: 5500 | V51: 0 | W51: 500 | X51: 35 | Y51: 35 | Z51: 43 | AA51: 523 | AB51: 87 | AC51: 38 | AD51: 125 | AE51: 21 | AF51: 24 | AG51: 550000
A52: 2015-2016 | B52: Pasco | C52: 8676 | D52: 13296 | E52: 1656 | F52: 4200 | G52: 4821 | H52: 7275 | I52: 2750 | J52: 5990 | K52: 355 | L52: 42000 | M52: 18000 | N52: 3839 | O52: 2545 | P52: 1998 | Q52: 3824 | R52: 2075 | S52: 1600 | T52: 2886 | U52: 8500 | V52: 0 | W52: 150 | X52: 15 | Y52: 3 | Z52: 9 | AA52: 125 | AB52: 15 | AC52: 15 | AD52: 25 | AE52: 30 | AF52: 5 | AG52: 180000
A53: 2015-2016 | B53: Pinellas | C53: 17800 | D53: 24376 | E53: 4950 | F53: 17864 | G53: 8566 | H53: 20528 | I53: 10008 | J53: 11326 | K53: 700 | L53: 97492 | M53: 5496 | N53: 2670 | O53: 2992 | P53: 3202 | Q53: 2954 | R53: 3146 | S53: 4220 | T53: 4586 | U53: 1112 | V53: 0 | W53: 220 | X53: 24 | Y53: 10 | Z53: 15 | AA53: 202 | AB53: 40 | AC53: 7 | AD53: 44 | AE53: 18 | AF53: 10 | AG53: 429194
A54: 2015-2016 | B54: Polk | C54: 9116 | D54: 13740 | E54: 3450 | F54: 7344 | G54: 4750 | H54: 12200 | I54: 4500 | J54: 10200 | K54: 600 | L54: 60181 | M54: 9781 | N54: 2913 | O54: 2450 | P54: 1429 | Q54: 6010 | R54: 4080 | S54: 1500 | T54: 9150 | U54: 1750 | V54: 0 | W54: 642 | X54: 46 | Y54: 14 | Z54: 7 | AA54: 90 | AB54: 15 | AC54: 3 | AD54: 30 | AE54: 8 | AF54: 2 | AG54: 232000
A55: 2015-2016 | B55: Putnam | C55: 1750 | D55: 1800 | E55: 320 | F55: 1300 | G55: 575 | H55: 1050 | I55: 450 | J55: 1400 | K55: 125 | L55: 7200 | M55: 2300 | N55: 275 | O55: 60 | P55: 200 | Q55: 360 | R55: 250 | S55: 50 | T55: 1700 | U55: 225 | V55: 0 | W55: 90 | X55: 2 | Y55: 2 | Z55: 1 | AA55: 8 | AB55: 2 | AC55: 2 | AD55: 6 | AE55: 2 | AF55: 1 | AG55: 23000
A56: 2015-2016 | B56: Santa Rosa | C56: 1745 | D56: 2606 | E56: 441 | F56: 2052 | G56: 1152 | H56: 1302 | I56: 719 | J56: 2311 | K56: 202 | L56: 20787 | M56: 1362 | N56: 764 | O56: 195 | P56: 363 | Q56: 539 | R56: 616 | S56: 471 | T56: 1028 | U56: 675 | V56: 0 | W56: 103 | X56: 4 | Y56: 4 | Z56: 3 | AA56: 40 | AB56: 5 | AC56: 1 | AD56: 18 | AE56: 7 | AF56: 1 | AG56: 54306
A57: 2015-2016 | B57: Sarasota | C57: 4540 | D57: 10234 | E57: 581 | F57: 5702 | G57: 3184 | H57: 6829 | I57: 7176 | J57: 4015 | K57: 245 | L57: 62004 | M57: 4871 | N57: 1463 | O57: 420 | P57: 1117 | Q57: 5656 | R57: 2126 | S57: 2925 | T57: 3425 | U57: 11 | V57: 0 | W57: 211 | X57: 6 | Y57: 1 | Z57: 3 | AA57: 108 | AB57: 1 | AC57: 8 | AD57: 28 | AE57: 5 | AF57: 4 | AG57: 144277
A58: 2015-2016 | B58: Seminole | C58: 4200 | D58: 5700 | E58: 1800 | F58: 5800 | G58: 3100 | H58: 7500 | I58: 2700 | J58: 5000 | K58: 250 | L58: 82000 | M58: 3500 | N58: 1600 | O58: 1250 | P58: 1500 | Q58: 5200 | R58: 1950 | S58: 1500 | T58: 4000 | U58: 3050 | V58: 0 | W58: 250 | X58: 43 | Y58: 5 | Z58: 20 | AA58: 75 | AB58: 50 | AC58: 5 | AD58: 30 | AE58: 1 | AF58: 1 | AG58: 450000
A59: 2015-2016 | B59: St. Johns | C59: 1973 | D59: 4775 | E59: 508 | F59: 2094 | G59: 1465 | H59: 2009 | I59: 1449 | J59: 2106 | K59: 132 | L59: 23610 | M59: 3238 | N59: 676 | O59: 170 | P59: 160 | Q59: 392 | R59: 28 | S59: 33 | T59: 706 | U59: 31 | V59: 0 | W59: 136 | X59: 2 | Y59: 1 | Z59: 0 | AA59: 44 | AB59: 6 | AC59: 1 | AD59: 26 | AE59: 1 | AF59: 0 | AG59: 47000
A60: 2015-2016 | B60: St. Lucie | C60: 4300 | D60: 5700 | E60: 1200 | F60: 3600 | G60: 2600 | H60: 4600 | I60: 2550 | J60: 3200 | K60: 400 | L60: 50000 | M60: 2000 | N60: 2800 | O60: 1400 | P60: 1800 | Q60: 2000 | R60: 1700 | S60: 1000 | T60: 3000 | U60: 270 | V60: 0 | W60: 260 | X60: 4 | Y60: 4 | Z60: 3 | AA60: 60 | AB60: 15 | AC60: 2 | AD60: 8 | AE60: 8 | AF60: 0 | AG60: 118000
A61: 2015-2016 | B61: Sumter | C61: 960 | D61: 700 | E61: 150 | F61: 1000 | G61: 850 | H61: 600 | I61: 1200 | J61: 850 | K61: 45 | L61: 13000 | M61: 425 | N61: 100 | O61: 20 | P61: 200 | Q61: 400 | R61: 260 | S61: 300 | T61: 675 | U61: 40 | V61: 0 | W61: 50 | X61: 1 | Y61: 1 | Z61: 1 | AA61: 15 | AB61: 2 | AC61: 1 | AD61: 5 | AE61: 1 | AF61: 1 | AG61: 60000
A62: 2015-2016 | B62: Suwannee | C62: 800 | D62: 600 | E62: 200 | F62: 620 | G62: 300 | H62: 550 | I62: 270 | J62: 750 | K62: 25 | L62: 3500 | M62: 750 | N62: 160 | O62: 110 | P62: 80 | Q62: 75 | R62: 75 | S62: 15 | T62: 475 | U62: 2 | V62: 0 | W62: 45 | X62: 2 | Y62: 1 | Z62: 1 | AA62: 20 | AB62: 1 | AC62: 1 | AD62: 1 | AE62: 1 | AF62: 1 | AG62: 12166
A63: 2015-2016 | B63: Taylor | C63: 415 | D63: 662 | E63: 62 | F63: 338 | G63: 222 | H63: 211 | I63: 111 | J63: 386 | K63: 14 | L63: 2504 | M63: 510 | N63: 156 | O63: 11 | P63: 0 | Q63: 80 | R63: 39 | S63: 6 | T63: 256 | U63: 0 | V63: 0 | W63: 19 | X63: 1 | Y63: 0 | Z63: 0 | AA63: 10 | AB63: 0 | AC63: 1 | AD63: 0 | AE63: 0 | AF63: 0 | AG63: 8200
A64: 2015-2016 | B64: Union | C64: 225 | D64: 210 | E64: 60 | F64: 140 | G64: 125 | H64: 160 | I64: 130 | J64: 240 | K64: 3 | L64: 1200 | M64: 65 | N64: 50 | O64: 30 | P64: 50 | Q64: 45 | R64: 30 | S64: 8 | T64: 200 | U64: 8 | V64: 0 | W64: 5 | X64: 1 | Y64: 0 | Z64: 0 | AA64: 10 | AB64: 0 | AC64: 0 | AD64: 0 | AE64: 0 | AF64: 0 | AG64: 3000
A65: 2015-2016 | B65: Volusia | C65: 9550 | D65: 15832 | E65: 2158 | F65: 12758 | G65: 4336 | H65: 8694 | I65: 5298 | J65: 7214 | K65: 384 | L65: 63758 | M65: 3194 | N65: 1370 | O65: 3358 | P65: 386 | Q65: 4236 | R65: 3042 | S65: 2036 | T65: 8246 | U65: 1238 | V65: 0 | W65: 282 | X65: 6 | Y65: 6 | Z65: 0 | AA65: 128 | AB65: 38 | AC65: 4 | AD65: 40 | AE65: 12 | AF65: 0 | AG65: 180277
A66: 2015-2016 | B66: Wakulla | C66: 291 | D66: 289 | E66: 88 | F66: 296 | G66: 286 | H66: 317 | I66: 180 | J66: 417 | K66: 13 | L66: 2793 | M66: 257 | N66: 75 | O66: 7 | P66: 87 | Q66: 125 | R66: 72 | S66: 29 | T66: 243 | U66: 5 | V66: 0 | W66: 24 | X66: 0 | Y66: 0 | Z66: 0 | AA66: 12 | AB66: 0 | AC66: 0 | AD66: 0 | AE66: 0 | AF66: 0 | AG66: 9550
A67: 2015-2016 | B67: Walton | C67: 860 | D67: 2312 | E67: 372 | F67: 958 | G67: 706 | H67: 770 | I67: 349 | J67: 845 | K67: 137 | L67: 6001 | M67: 514 | N67: 508 | O67: 52 | P67: 141 | Q67: 714 | R67: 252 | S67: 55 | T67: 498 | U67: 171 | V67: 0 | W67: 59 | X67: 2 | Y67: 1 | Z67: 1 | AA67: 42 | AB67: 2 | AC67: 1 | AD67: 7 | AE67: 3 | AF67: 2 | AG67: 22941
A68: 2015-2016 | B68: Washington | C68: 400 | D68: 650 | E68: 96 | F68: 300 | G68: 250 | H68: 255 | I68: 115 | J68: 400 | K68: 20 | L68: 3800 | M68: 254 | N68: 56 | O68: 5 | P68: 39 | Q68: 2 | R68: 2 | S68: 2 | T68: 126 | U68: 2 | V68: 0 | W68: 12 | X68: 2 | Y68: 2 | Z68: 2 | AA68: 4 | AB68: 2 | AC68: 5 | AD68: 1 | AE68: 1 | AF68: 0 | AG68: 27000
